{"text_format":"1","workbook":"xlsx","n_sheets":3,"sheets":["Krycí list","Cenová nabídka","Rozdělení prostor"],"not_rendered":{"charts":0,"images":0,"macros":0,"external_links":0,"defined_names":3,"comments":0,"pivot_tables":0},"unopened":[],"bounds":{"document_bytes":16777216,"sheet_cells":100000,"rows_first":2000,"rows_last":500,"rows_between":2000,"halvings":0,"cell_chars":16384,"cell_head_chars":4096},"cells_cut":0,"cells_raw":0,"read":"whole","date_system":"1900"}

{"sheet":"Krycí list","index":0,"n_rows":23,"n_cols":5,"rows_kept":23,"cut":false,"hidden":false,"merged":[[2,0,2,1],[0,0,0,4]]}
["SMLOUVA NA ZAJIŠTĚNÍ ÚKLIDOVÝCH PRACÍ 2024-2028\nPříloha č. 1 KRYCÍ LIST NABÍDKY"]
["Příloha č. 1 Smlouvy"]
["Nabídková cena za úklidové práce - Souhrny ze záložky \"Cenová nabídka\"",null,"Cena za 1 měsíc v Kč bez DPH / Cena za 1 rok v Kč bez DPH","Cena za 12 měsíců v Kč bez DPH","Cena za 48 měsíců v Kč bez DPH"]
["Prostory A","Servery, kanceláře pod dozorem",{"$f":"('Cenová nabídka'!G10)","v":0},{"$f":"('Cenová nabídka'!H10)","v":0},{"$f":"('Cenová nabídka'!I10)","v":0}]
["Prostory B","Kanceláře ředitele SZIF, ŘS, ŘO, sekretariáty",{"$f":"('Cenová nabídka'!G29)","v":0},{"$f":"('Cenová nabídka'!H29)","v":0},{"$f":"('Cenová nabídka'!I29)","v":0}]
["Prostory C","Kanceláře",{"$f":"('Cenová nabídka'!G39)","v":0},{"$f":"('Cenová nabídka'!H39)","v":0},{"$f":"('Cenová nabídka'!I39)","v":0}]
["Prostory D","Zasedací místnosti, učebny",{"$f":"('Cenová nabídka'!G53)","v":0},{"$f":"('Cenová nabídka'!H53)","v":0},{"$f":"('Cenová nabídka'!I53)","v":0}]
["Prostory E","Chodby, haly, schodiště, hlavní vstup do budovy, kuchyňky",{"$f":"('Cenová nabídka'!G68)","v":0},{"$f":"('Cenová nabídka'!H68)","v":0},{"$f":"('Cenová nabídka'!I68)","v":0}]
["Prostory F","Jídelna",{"$f":"('Cenová nabídka'!G74)","v":0},{"$f":"('Cenová nabídka'!H74)","v":0},{"$f":"('Cenová nabídka'!I74)","v":0}]
["Prostory G","Hygienické zázemí (WC, umyvárny, sprchy)",{"$f":"('Cenová nabídka'!G89)","v":0},{"$f":"('Cenová nabídka'!H89)","v":0},{"$f":"('Cenová nabídka'!I89)","v":0}]
["Prostory H","Výtahy",{"$f":"('Cenová nabídka'!G96)","v":0},{"$f":"('Cenová nabídka'!H96)","v":0},{"$f":"('Cenová nabídka'!I96)","v":0}]
["Prostory I","Průjezd, chodníky",{"$f":"('Cenová nabídka'!G103)","v":0},{"$f":"('Cenová nabídka'!H103)","v":0},{"$f":"('Cenová nabídka'!I103)","v":0}]
["Prostory K","Vnitřní dvůr, Balkony",{"$f":"('Cenová nabídka'!G111)","v":0},{"$f":"('Cenová nabídka'!H111)","v":0},{"$f":"('Cenová nabídka'!I111)","v":0}]
["Prostory L","Dešťové svody, dvorní vpusti",{"$f":"('Cenová nabídka'!G116)","v":0},{"$f":"('Cenová nabídka'!H116)","v":0},{"$f":"('Cenová nabídka'!I116)","v":0}]
["Prostory M","Úklidové místnosti",0,0,0]
["Měsíční úklid (1x za měsíc)",null,{"$f":"('Cenová nabídka'!G129)","v":0},{"$f":"('Cenová nabídka'!H129)","v":0},{"$f":"('Cenová nabídka'!I129)","v":0}]
["Půlroční (2x za rok)",null,{"$f":"('Cenová nabídka'!G147)","v":0},{"$f":"('Cenová nabídka'!H147)","v":0},{"$f":"('Cenová nabídka'!I147)","v":0}]
["Roční (1 x za rok)",null,{"$f":"('Cenová nabídka'!G154)","v":0},{"$f":"('Cenová nabídka'!H154)","v":0},{"$f":"('Cenová nabídka'!I154)","v":0}]
["Speciální úklid",null,{"$f":"('Cenová nabídka'!G159)","v":0},{"$f":"('Cenová nabídka'!H159)","v":0},{"$f":"('Cenová nabídka'!I159)","v":0}]
["Denní služba"," ",{"$f":"('Cenová nabídka'!G164)","v":0},{"$f":"('Cenová nabídka'!H164)","v":0},{"$f":"('Cenová nabídka'!I164)","v":0}]
["Spotřební materiál"," ",{"$f":"('Cenová nabídka'!G180)","v":0},{"$f":"('Cenová nabídka'!H180)","v":0},{"$f":"('Cenová nabídka'!I180)","v":0}]
["Generální úklid",null,{"$f":"('Cenová nabídka'!G158)","v":0},{"$f":"('Cenová nabídka'!H181)","v":0},{"$f":"('Cenová nabídka'!I185)","v":0}]
["Cena celkem",null,{"$f":"SUM(C4:C21)","v":0},{"$f":"SUM(D4:D21)","v":0},{"$f":"SUM(E4:E22)","v":0}]

{"sheet":"Cenová nabídka","index":1,"n_rows":185,"n_cols":10,"rows_kept":185,"cut":false,"hidden":false,"merged":[[91,3,93,3],[125,3,126,3],[76,1,83,1],[77,3,83,3],[84,3,86,3],[123,3,124,3],[12,3,17,3],[19,3,26,3],[31,3,32,3],[33,3,36,3],[47,3,50,3],[42,3,46,3],[160,0,161,0],[165,0,177,0],[98,0,100,0],[91,0,93,0],[91,1,93,1],[106,1,108,1],[130,0,144,0],[148,0,151,0],[155,0,156,0],[119,1,126,1],[98,1,99,1],[106,0,108,0],[33,1,36,1],[41,0,50,0],[41,1,46,1],[47,1,50,1],[56,3,58,3],[55,0,65,0],[55,1,61,1],[62,1,65,1],[181,0,182,0],[0,0,0,8],[1,0,1,8],[2,0,2,4],[6,0,7,0],[6,1,7,1],[76,0,86,0],[12,0,26,0],[12,1,17,1],[19,1,26,1],[118,0,126,0],[70,0,71,0],[70,1,71,1],[84,1,86,1],[31,0,36,0],[31,1,32,1]]}
["SMLOUVA NA ZAJIŠTĚNÍ ÚKLIDOVÝCH PRACÍ 2024 - 2028\nPříloha č. 2    CENOVÁ NABÍDKA, VČETNĚ DAT O OBJEKTECH"]
["Cena za úklid bude uvedena, včetně úklidových prostředků"]
["Přehled prostor, činností a četnost úklidu"]
["Podrobný rozpis uvedených prostor, včetně půdorysů, bude dodavateli předložen po podpisu smlouvy"]
[]
["Prostor A","Typ úklidu","Druh úklidu","Měrná jednotka m2 /ks / komplet","Množství (předpokládané)","Počet úkonů za rok","Cena za 1 úkon Kč bez DPH","Cena za 12 měsíců v Kč bez DPH","Cena za 48 měsíců v Kč bez DPH"]
["Servery, kanceláře pod dozorem, archivy, sklady","Půlroční (2x do roka)","Vysání ploch koberců včetně odstranění případných skvrn nebo mokré stírání celé plochy včetně odstraňování skvrn, dle podlahové krytiny - lino, koberec,…","m2",941.93,2,0,{"$f":"F7*G7","v":0},{"$f":"H7*4","v":0}]
[null,null,"Úklid vnitřních prostor volně přístupných stolů a volných ploch","komplet",59,2,0,{"$f":"F8*G8","v":0},{"$f":"H8*4","v":0}]
[]
[null,null,null,null,null,"Cena celkem v Kč bez DPH",{"$f":"SUM(G7:G8)","v":0},{"$f":"SUM(H7:H8)","v":0},{"$f":"SUM(I7:I8)","v":0}]
[]
["Prostor B","Typ úklidu","Druh úklidu","Měrná jednotka m2 /ks / komplet","Množství (předpokládané)","Počet úkonů za měsíc","Cena za 1 měsíc v Kč bez DPH","Cena za 12 měsíců v Kč bez DPH","Cena za 48 měsíců v Kč bez DPH"]
["Kanceláře GŘ, ŘS, ŘO, sekretariáty      ","Pravidelný (denní) úklid                       Přehled požadovaných činností","Vyprázdnění nádob na odpad včetně doplnění a dodávky mikroténových sáčků do odpadkových nádob, utření nádob v případě potřeby, přesun odpadu na určené místo","komplet",40,21,0,{"$f":"G13*12","v":0},{"$f":"H13*4","v":0}]
[null,null,"Vyprázdnění skartátorů včetně doplnění a dodávky mikroténových sáčků, utření nádob v případě potřeby, přesun odpadu na určené místo",null,"-","-","-","-","-"]
[null,null,"Běžné omytí umyvadla nebo dřezu včetně baterie dezinfekčním prostředkem",null,"-","-","-","-","-"]
[null,null,"Úklid vnitřních prostor volně přístupných stolů a volných ploch do výše 1,6 m",null,"-","-","-","-","-"]
[null,null,"Omytí toaletních mís, pisoárů dezinfekčním prostředkem, a to jak zevnitř, tak zvenčí",null,"-","-","-","-","-"]
[null,null,"Dodání a doplnění hygienického standardu (mýdlo, toaletní papír, papírové ručníky, dezinfekce WC prkénka)",null,"-","-","-","-","-"]
[null,"Týdenní úklid (2x za týden)","Vysání ploch koberců včetně odstranění případných skvrn nebo mokré stírání celé plochy včetně odstraňování skvrn, dle podlahové krytiny - koberec, parkety","m2",1097.82,21,0,{"$f":"G19*12","v":0},{"$f":"H19*4","v":0}]
[null,"Týdenní úklid (1x za týden)                                    Přehled požadovaných činností","Odstranění prachu z vypínačů a ostatních zařízení na stěnách (zásuvky, klimatizační jednotky, věšáky, obrazy, skartovací stroje, televizory, apod.)","komplet",40,4,0,{"$f":"G20*12","v":0},{"$f":"H20*4","v":0}]
[null,null,"Umytí celé plochy dveří včetně zárubní + kliky",null,"-","-","-","-","-"]
[null,null,"Lokální stírání prachu z vodorovných volně přístupných ploch nábytků nad 1,6 m, včetně pavučin",null,"-","-","-","-","-"]
[null,null,"Omytí a vyleštění celých ploch zrcadel",null,"-","-","-","-","-"]
[null,null,"Otření otopných těles",null,"-","-","-","-","-"]
[null,null,"Mytí a dezinfekce hygienické zóny u umyvadla nebo dřezu (obklad)",null,"-","-","-","-","-"]
[null,null,"Odstranění prachu a omytí parapetů v interiéru místnosti, včetně meziokenních prostor (okna + balkonové dveře)",null,"-","-","-","-","-"]
[null,null,"Umytí kuchyňské pracovní plochy, dřezu, baterie, skříněk, lednice a myčky (volné vnější plochy)",null,"-","-","-","-","-"]
[]
[null,null,null,null,null,"Cena celkem v Kč bez DPH",{"$f":"SUM(G13:G27)","v":0},{"$f":"SUM(H13:H27)","v":0},{"$f":"SUM(I13:I27)","v":0}]
[]
["Prostor C","Typ úklidu","Druh úklidu","Měrná jednotka m2 /ks / komplet","Množství (předpokládané)","Počet úkonů za měsíc","Cena za 1 měsíc v Kč bez DPH","Cena za 12 měsíců v Kč bez DPH","Cena za 48 měsíců v Kč bez DPH"]
["Kanceláře ","Pravidelný (denní) úklid                         Přehled požadovaných činností","Vyprázdnění nádob na odpad včetně doplnění a dodávky mikroténových sáčků do odpadkových nádob, utření nádob v případě potřeby, přesun odpadu na určené místo","komplet",213,21,0,{"$f":"G32*12","v":0},{"$f":"H32*4","v":0}]
[null,null,"Vyprázdnění skartátorů včetně doplnění a dodávky mikroténových sáčků, utření nádob v případě potřeby, přesun odpadu na určené místo",null,"-","-","-","-","-"]
[null,"Týdenní úklid (2x za týden)                          Přehled požadovaných činností","Úklid vnitřních prostror přístupných stolů a volných ploch","komplet",213,8,0,{"$f":"G34*12","v":0},{"$f":"H34*4","v":0}]
[null,null,"Mytí a dezinfekce hygienické zóny u umyvadla nebo dřezu",null,"-","-","-","-","-"]
[null,null,"Vysání ploch koberců včetně odstranění případných skvrn nebo mokré stírání celé plochy včetně odstraňování skvrn, dle podlahové krytiny",null,"-","-","-","-","-"]
[null,null,"Lokální stírání prachu z vodorovných volně přístupných ploch nábytku do výše 1,6 m ",null,"-","-","-","-","-"]
[]
[null,null,null,null,null,"Cena celkem v Kč bez DPH",{"$f":"SUM(G32:G37)","v":0},{"$f":"SUM(H32:H37)","v":0},{"$f":"SUM(I32:I37)","v":0}]
[]
["Prostor D","Typ úklidu","Druh úklidu","Měrná jednotka m2 /ks / komplet","Množství (předpokládané)","Počet úkonů za měsíc","Cena za 1 měsíc v Kč bez DPH","Cena za 12 měsíců v Kč bez DPH","Cena za 48 měsíců v Kč bez DPH"]
["Zasedací místnosti, učebny","Pravidelný (denní) úklid                               Přehled požadovaných činností","Vysání ploch koberců včetně odstranění případných skvrn nebo mokré stírání celé plochy včetně odstraňování skvrn, dle podlahové krytiny","m2",413.28,21,0,{"$f":"G42*12","v":0},{"$f":"H42*4","v":0}]
[null,null,"Vyprázdnění nádob na odpad včetně doplnění a dodávky mikroténových sáčků do odpadkových nádob, utření nádob v případě potřeby, přesun odpadu na určené místo (v případě, že jsou umístěny v prostoru)","komplet",13,21,0,{"$f":"G43*12","v":0},{"$f":"H43*4","v":0}]
[null,null,"Omytí a vyleštění celých ploch zrcadel (v případě, že jsou umístěny v prostoru)",null,"-","-","-","-","-"]
[null,null,"Úklid vnitřních prostor volně přístupných stolů a volných ploch včetně židlí",null,"-","-","-","-","-"]
[null,null,"Dezinfekce úchytových míst (baterie, zásobník na mýdla, zásobník na WC, splachovadel, klik apod., v případě, že jsou umístěny v prostoru, v případě, že jsou umístěny v prostoru)",null,"-","-","-","-","-"]
[null,null,"Umytí kuchyňské pracovní plochy, dřezu, baterie, skříněk, lednice a myčky (volné vnější plochy, v případě, že jsou umístěny v prostoru)",null,"-","-","-","-","-"]
[null,"Týdenní úklid (1x za týden)                         Přehled požadovaných činností","Umytí celé plochy dveří včetně zárubní a klik","komplet",13,4,0,{"$f":"G48*12","v":0},{"$f":"H48*4","v":0}]
[null,null,"Lokální stírání prachu z vodorovných volně přístupných ploch nábytků do výše 1,6 m včetně pavučin",null,"-","-","-","-","-"]
[null,null,"Odstranění prachu z vypínačů a ostatních zařízení na stěnách (zásuvky, klimatizační jednotky, věšáky, obrazy)",null,"-","-","-","-","-"]
[null,null,"Odstranění prachu a omytí parapetů v interiéru místnosti, včetně meziokenních prostor (v případě, že jsou umístěny v prostoru)",null,"-","-","-","-","-"]
[]
[null,null,null,null,null,"Cena celkem v Kč bez DPH",{"$f":"SUM(G42:G51)","v":0},{"$f":"SUM(H42:H51)","v":0},{"$f":"SUM(I42:I51)","v":0}]
[]
["Prostor E","Typ úklidu","Druh úklidu","Měrná jednotka m2/ks","Množství (předpokládané)","Počet úkonů za 1 měsíc","Cena za 1 měsíc v Kč bez DPH","Cena za 12 měsíců v Kč bez DPH","Cena za 48 měsíců v Kč bez DPH"]
["Chodby, haly, schodiště, hlavní vstup                             do objektu, kuchyňky, recepce","Pravidelný (denní) úklid                        Přehled požadovaných činností","Vysání ploch koberců včetně odstranění případných skvrn nebo mokré stírání celé plochy, včetně soklů, včetně odstraňování skvrn, dle podlahové krytiny (převažuje dlažba,marmoleum) včetně podest, schodiště a madel zábradlí","m2",2659.88,21,0,{"$f":"G56*12","v":0},{"$f":"H56*4","v":0}]
[null,null,"Vyprázdnění nádob na odpad, včetně nádob na tříděný odpad, které jsou umístěny na chodbách objektů, doplnění a dodávky mikroténových sáčků do odpadkových nádob, utření nádob v případě potřeby, přesun odpadu na určené místo dle klasifikace zákona o odpadech","komplet",232,21,0,{"$f":"G57*12","v":0},{"$f":"H57*4","v":0}]
[null,null,"Vyprázdnění skartátorů včetně doplnění a dodávky mikroténových sáčků, utření nádob v případě potřeby, přesun odpadu na určené místo  (v případě, že jsou umístěny v prostoru)",null,"-","-","-","-","-"]
[null,null,"Úklid vnitřních prostor volně přístupných stolů a volných ploch včetně židlí (kuchyňky, recepce,..).Umytí a odmaštění dřezu a pracovní plochy. Umytí vodovodních baterií.",null,"-","-","-","-","-"]
[null,null,"Doplňování papírových ručníků do kuchyněk","ks",29,21,0,{"$f":"G60*12","v":0},{"$f":"H60*4","v":0}]
[null,null,"Úklid rohoží včetně roštů na nečistoty","m2",26.8,21,0,0,0]
[null,null,"Úklid hlavního schodiště do budovy včetně madel zábradlí ","m2",824.19,21,0,0,0]
[null,"Týdenní úklid                                     Přehled požadovaných činností","Čištění a leštění hlavních vstupních dveří do budovy ","m2",15.04,4,0,0,0]
[null,null,"Čištění vnitřních parapetů u oken, včetně odstranění veškerých pavučin ","ks",36,4,0,0,0]
[null,null,"Otření nábytku na chodbách, vysátí čalouněného nábytku (v případě, že jsou umístěny v prostoru)","ks",200,4,0,0,0]
[null,null,"Omytí dřezů včetně baterií dezinfekčním prostředkem (v případě, že jsou umístěny v prostoru)","ks",29,4,0,0,0]
[]
[null,null,null,null,null,"Cena celkem v Kč bez DPH",{"$f":"SUM(G56:G66)","v":0},{"$f":"SUM(H56:H66)","v":0},{"$f":"SUM(I56:I66)","v":0}]
[]
["Prostor F","Typ úklidu","Druh úklidu","Měrná jednotka m2/ks","Množství (předpokládané)","Počet úkonů za 1 měsíc","Cena za 1 měsíc v Kč bez DPH","Cena za 12 měsíců v Kč bez DPH","Cena za 48 měsíců v Kč bez DPH"]
["Jídelna","Pravidelný (denní) úklid","Mokré stírání podlahy","m2",82.42,21,0,{"$f":"G71*12","v":0},{"$f":"H71*4","v":0}]
[null,null,"Úklid vnitřních prostor volně přístupných stolů a volných ploch včetně židlí","ks",51,21,0,{"$f":"G72*12","v":0},{"$f":"H72*4","v":0}]
[]
[null,null,null,null,null,"Cena celkem v Kč bez DPH",{"$f":"SUM(G71:G72)","v":0},{"$f":"SUM(H71:H72)","v":0},{"$f":"SUM(I71:I72)","v":0}]
[]
["Prostor G","Typ úklidu","Druh úklidu","Měrná jednotka m2/ks","Množství ","Počet úkonů za 1 měsíc","Cena za 1 měsíc v Kč bez DPH","Cena za 12 měsíců v Kč bez DPH","Cena za 48 měsíců v Kč bez DPH"]
["Hygienické zázemí (WC, umyvárny, sprchy)","Pravidelný (denní) úklid                              Přehled požadovaných činností","Umytí podlahové plochy dezinfekčním prostředkem včetně odstranění skvrn","m2",283.45999999999998,21,0,{"$f":"G77*12","v":0},{"$f":"H77*4","v":0}]
[null,null,"Vyprázdnění nádob na odpad včetně doplnění a dodávky mikroténových sáčků do odpadkových nádob, utření nádob v případě potřeby, přesun odpadu na určené místo","komplet",116,21,0,{"$f":"G78*12","v":0},{"$f":"H78*4","v":0}]
[null,null,"Omytí umyvadla včetně baterie dezinfekčním prostředkem",null,"-","-","-","-","-"]
[null,null,"Omytí toaletních mís, pisoárů a výlevek dezinfekčním prostředkem, a to jak zevnitř, tak zvenčí",null,"-","-","-","-","-"]
[null,null,"Omytí a vyleštění zrcadel",null,"-","-","-","-","-"]
[null,null,"Dezinfekce úchytových míst (baterie, zásobník na mýdla, zásobník na WC, splachovadel, klid apod.)",null,"-","-","-","-","-"]
[null,null,"Odstranění ohmatů a skvrn z obkladů a omyvatelných stěn",null,"-","-","-","-","-"]
[null,null,"Dodání a doplnění hygienického standardu (mýdlo, toaletní papír, papírové ručníky, dezinfekce WC prkénka)",null,"-","-","-","-","-"]
[null,"Týdenní úklid (1x za týden)                      Přehled požadovaných činností","Odstranění prachu z vypínačů a ostatního zařízení na stěnách (topení, atd.)","komplet",116,4,0,{"$f":"G85*12","v":0},{"$f":"H85*4","v":0}]
[null,null,"Vymývání odpadkových nádob dezinfekčním prostředkem",null,"-","-","-","-","-"]
[null,null,"Omytí sprchových koutů dezinfekčním prostředkem",null,"-","-","-","-","-"]
[]
[null,null,null,null,null,"Cena celkem v Kč bez DPH",{"$f":"SUM(G77:G87)","v":0},{"$f":"SUM(H77:H87)","v":0},{"$f":"SUM(I77:I87)","v":0}]
[]
["Prostor H","Typ úklidu","Druh úklidu","Měrná jednotka m2 /ks / komplet","Množství ","Počet úkonů za 1 měsíc","Cena za 1 měsíc v Kč bez DPH","Cena za 12 měsíců v Kč bez DPH","Cena za 48 měsíců v Kč bez DPH"]
["Výtahy","Týdenní úklid (2x za týden)                        Přehled požadovaných činností","Osobní výtahy - Odstranění ohmatů a skvrn ze skel, zrcadel, nerezových ploch celých kabin, dezinfekce omyvatelných podlahových ploch či omyvatelných stěn (osobní výtahy), a to zevnitř i zvenku, včetně dveří.  ","komplet",4,8,0,{"$f":"G92*12","v":0},{"$f":"H92*4","v":0}]
[null,null,"Osobní výtahy - Vytírání celé plochy saponátem",null,"-","-","-","-","-"]
[null,null,"Osobní výtahy - Odstranění nečistot ze spodních drážek dveří výtahu",null,"-","-","-","-","-"]
[]
[null,null,null,null,null,"Cena celkem v Kč bez DPH",{"$f":"SUM(G92:G94)","v":0},{"$f":"SUM(H92:H94)","v":0},{"$f":"SUM(I92:I94)","v":0}]
[]
["Prostor I","Typ úklidu","Druh úklidu","Měrná jednotka m2 /ks / komplet","Množství ","Počet úkonů za 1 měsíc","Cena za 1 měsíc v Kč bez DPH","Cena za 12 měsíců v Kč bez DPH","Cena za 48 měsíců v Kč bez DPH"]
["Průjezd, chodníky, vstupy do objektů","Pravidelný (denní) úklid","Zametení ploch průjezdů","m2",90.4,21,0,{"$f":"G99*12","v":0},{"$f":"H99*4","v":0}]
[null,null,"Úklid (zametení) chodníků, schodiště okolo budovy a odstranění odpadků z venkovních ploch a výloh, v případě znečištění omatí vapkou nebo ručně","m2",148.80000000000001,21,0,{"$f":"G100*12","v":0},{"$f":"H100*4","v":0}," "]
[null,"Týdenní úklid (2 x týden)","Vytírání celé plochy podlahy průjezdů saponátem","m2",90.4,8,0,{"$f":"G101*12","v":0},{"$f":"H101*4","v":0}]
[]
[null,null,null,null,null,"Cena celkem v Kč bez DPH",{"$f":"SUM(G99:G101)","v":0},{"$f":"SUM(H99:H101)","v":0},{"$f":"SUM(I99:I101)","v":0}]
[]
[]
["Prostor K","Typ úklidu","Druh úklidu","Měrná jednotka m2 /ks / komplet","Množství (předpokládané)","Počet úkonů za 1 měsíc","Cena za 1 měsíc v Kč bez DPH","Cena za 12 měsíců v Kč bez DPH","Cena za 48 měsíců v Kč bez DPH"]
["Vnitřní dvůr, balkony","Týdenní úklid (1 x týden)                Přehled požadovaných činností","Balkony Smečky 1. patro + Balkony (Lodžie) Štěpánská - Zametení ploch a odstranění odpadků a trusu z venkovních ploch (parapety, zábradlí balkónů), včetně vytření podlahové plochy","m2",147.05000000000001,4,0,{"$f":"G107*12","v":0},{"$f":"H107*4","v":0}]
[null,null,"Vnitřní dvory - úklid, úklid kolem nádob na odpad, zametení, v případě výskytu plevele, jeho odstranění","m2",450,4,0,{"$f":"G108*12","v":0},{"$f":"H108*4","v":0}," "]
[null,null,"Vnitřní dvory - Vysypání venkovních popelníků","ks",2,4,0,{"$f":"G109*12","v":0},{"$f":"H109*4","v":0}]
[]
[null,null,null,null,null,"Cena celkem v Kč bez DPH",{"$f":"SUM(G107:G109)","v":0},{"$f":"SUM(H107:H109)","v":0},{"$f":"SUM(I107:I109)","v":0}]
[]
["Prostor L","Typ úklidu","Druh úklidu","Měrná jednotka m2 /ks / komplet","Množství ","Počet úkonů za 1 rok","Cena za 1 úkon v Kč bez DPH","Cena za 12 měsíců v Kč bez DPH","Cena za 48 měsíců v Kč bez DPH"]
["Dešťové svody, dvorní vpusti","Čištění 4 x do roka","Čištění drenáží, dvorních a uličních vpustí, ukončení dešťových svodů/gajgry/","ks",17,4,0,{"$f":"F114*G114","v":0},{"$f":"H114*4","v":0}]
[]
[null,null,null,null,null,"Cena celkem v Kč bez DPH",{"$f":"SUM(G114:G114)","v":0},{"$f":"SUM(H114:H114)","v":0},{"$f":"SUM(I114:I114)","v":0}]
[]
[]
["Měsíční úklid (1x za měsíc) Všechny prostory","Druh úklidu","Druh úklidu","Měrná jednotka m2 /ks / komplet","Množství (předpokládané)","Počet úkonů za 1 měsíc","Cena za 1 měsíc v Kč bez DPH","Cena za 12 měsíců v Kč bez DPH","Cena za 48 měsíců v Kč bez DPH"]
[null,"Všechny prostory                             Přehled požadovaných činností","Odstranění prachu z vypínačů a ostatních zařízení na stěnách zásuvky, klimatizační jednotky, věšáky, obrazy,...)","komplet",640,1,0,{"$f":"G120*12","v":0},{"$f":"H120*4","v":0}]
[null,null,"Odstranění prachu a omytí parapetů v interiéru místnosti, včetně meziokenních prostor (okna - balkonové dveře)","komplet",555,1,0,0,0]
[null,null,"Umytí celé plochy dveří, zárubní včetně dveřních klik","ks",678,1,0,0,0]
[null,null,"Omytí a vyleštění celých ploch zrcadel","ks",500,1,0,0,0]
[null,null,"Umytí ventilátorů v kuchyňkách","komplet",29,1,0,0,0]
[null,null,"Mytí a dezinfekce obkladů v kuchyňkách",null,"-","-","-","-","-"]
[null,null,"Umytí ventilátorů na toaletách a ve sprchách","komplet",116,1,0,0,0]
[null,null,"Mytí a dezinfekce obkladů na toaletách a ve sprchách ",null,"-","-","-","-","-"]
[]
[null,null,null,null,null,"Cena celkem v Kč bez DPH",{"$f":"SUM(G120:G127)","v":0},{"$f":"SUM(H120:H127)","v":0},{"$f":"SUM(I120:I127)","v":0}]
[]
["Půlroční (2x za rok)   Všechny prostory","Druh úklidu","Druh úklidu","Měrná jednotka m2 /ks / komplet","Množství (předpokládané)","Počet úkonů za 1 rok","Cena za 1 úkon v Kč bez DPH","Cena za 12 měsíců v Kč bez DPH","Cena za 48 měsíců v Kč bez DPH"]
[null,"Topení","Umytí otopných těles ","ks",800,2,0,{"$f":"F132*G132","v":0},{"$f":"H132*4","v":0}]
[null,"Vše nad 1,6 m","Lokální stírání prachu z vodorovných volně přístupných ploch nábytku nad výši 1,6 m včetně pavučin a ošetření všech ploch nábytku (bočních stran, dvířek, …) odpovídajícím prostředkem (např. Pronto,..). Na základě prohlídky místa plnění a informace o počtu prostor celkem v obou objektech (cca 650), je možné nacenit. Viz. Rozdělení prostor)","komplet",650,2,0,{"$f":"F133*G133","v":0},{"$f":"H133*4","v":0}]
[null,"Okna","Mytí oken, balkonových dveří, oken do světlíků, odstranění prachu a omytí parapetů v interiéru místnosti, včetně meziokenních prostor. ","m2",3889.15,2,0,0,0]
[null,"Okna","Praní záclon nebo žaluzií včetně svěšení a pověšení nebo umytí horizontálních žaluzií Okna a balkonové dveře)","ks",555,2,0,0,0]
[null,"Výlohy","Mytí výloh v průjezdu v budově Štěpánská (3 ks)","m2",15,2,0,0,0]
[null,"Výlohy","Mytí výloh ve vnější fasádě objektu Ve Smečkách 9 ks","m2",123.5,2,0,0,0]
[null,"Prosklenné plochy vnitřní","Mytí a vyleštění prosklených ploch","m2",120,2,0,0,0]
[null,"Chodby Ve Smečkách","Voskování tvrdým voskem na chodbách ( Marmoleum), 2 vrstvy, např.Taski Jontec Linobase F 21-prostředek na vyplňování pórů v linoleu, Time saver- vysoce lesklá disperze.","m2",900,2,0,0,0]
[null,"Dveře venkovní","Mytí venkovních dveří / vrat ve fasádě (venkovní i vnitřní dvůr), včetně vyleštění všech souvisejících prosklenných ploch včetně zárubní, použití přípravku na dřevo - masiv (18 ks)","m2",148.71,2,0,0,0]
[null,"Zábradlí","Umytí kovaných uměleckých zábradlí na všech schodištích ( 5 x cca  6 pater), mříže recepce, tahokov","m2",300.08,2,0,0,0]
[null,"Mříže","Umytí mříží (hlavní vstup Smečky, hlavní vstup Štěpánská)","m2",22.1,2,0,0,0]
[null,"Výtah nákladní","Odstranění nečistot ze spodních drážek dveří výtahu, odstranění nečistot a pavučin, vytření podlahy","komplet",3,2,0,0,0]
[null,"Nádoby na odpad","Umytí a desinfekce popelnic a kontejnerů","ks",18,2,0,0,0," "]
[null,"Balkony 4. p. Smečky","Balkony 4. patro Smečky - Zametení ploch a odstranění odpadků a trusu z venkovních ploch (parapety, zábradlí balkónů), včetně vytření","m2",85,2,0,0,0]
[]
[null,null,null,null,null,"Cena celkem v Kč bez DPH",{"$f":"SUM(G132:G145)","v":0},{"$f":"SUM(H132:H145)","v":0},{"$f":"SUM(I132:I145)","v":0}]
[]
["Roční (1 x za rok)  Všechny prostory","Druh úklidu","Druh úklidu","Měrná jednotka m2 /ks / komplet","Množství (předpokládané)","Počet úkonů za 1 rok ","Cena za 1 rok v Kč bez DPH","Cena za 12 měsíců v Kč bez DPH","Cena za 48 měsíců v Kč bez DPH"]
[null,"1 x rok","Praní koberců mokrou cestou (ve všech prostorech)","m2",5643,1,0,{"$f":"G150","v":0},{"$f":"H150*4","v":0}]
[null,"1 x rok","Čištění čalouněného nábytku mokrou cestou (židle jednací,židle otočné, křesla, sedačky atd.)","ks",1835,1,0,{"$f":"G151","v":0},{"$f":"H151*4","v":0}]
[null,"1 x rok","Mytí jmenovek u kanceláří a na chodbách","ks",600,1,0,{"$f":"G152","v":0},{"$f":"H152*4","v":0}]
[]
[null,null,null,null,null,"Cena celkem v Kč bez DPH",{"$f":"SUM(G150:G152)","v":0},{"$f":"SUM(H150:H152)","v":0},{"$f":"SUM(I150:I152)","v":0}]
[]
["Speciální úklid","Druh úklidu","Druh úklidu","Měrná jednotka m2 /ks / komplet","Množství za rok (předpokládané)","Cena v Kč / hod bez DPH","Cena za 1 rok v Kč bez DPH","Cena za 12 měsíců v Kč bez DPH","Cena za 48 měsíců v Kč bez DPH"]
[null," ","Úklid při havárii vody, topení, po stavebních pracích, úklid sněhu včetně posypu v přílehlých prostorách dle klimatických podmínek apod.","hod",500,0,{"$f":"(E157*F157)","v":0},{"$f":"G157","v":0},{"$f":"H157*4","v":0}]
[]
[null,null,null,null,null,"Cena celkem v Kč bez DPH",{"$f":"SUM(G157:G157)","v":0},{"$f":"SUM(H157:H157)","v":0},{"$f":"SUM(I157:I157)","v":0}]
[]
["DENNÍ SLUŽBA","Druh úklidu","Druh úklidu","Měrná jednotka hod","Cena v Kč / 1 hod. bez DPH","Cena za pracovníka / den","Cena za 1 měsíc v Kč bez DPH","Cena za 12 měsíců v Kč bez DPH","Cena za 48 měsíců v Kč bez DPH"]
[null," ","Denní služba - 1 pracovník   8 hodin denně                                                               Náplň denní služby zajištění úklidu tvoří zejména: denní preventivní kontrola zasedacích místností Konferenčního a výukového centra Ve Smečkách a Konferenčního centra Štěpánská, a to v pracovních dnech v ranních hodinách cca v rozmezí mezi 6:00 – 7:30. Standardně je tento typ úklidu ošetřen v interních Provozních řádech SZIF, kdy by pořadatel, který si prostor zapůjčí, měl tento prostor vrátit v takovém stavu, v jakém si jej půjčoval. Nicméně v případě zjištění nepořádku, je nutné provedení úklidu kuchyněk (úklid nádobí, naskládání nádobí do myčky a zapnutí, otření volných znečištěných ploch) nebo zjištění jiných mimořádných potřeb na úklid, a to nad rámec standardního úklidu, denní kontrola a čištění kávovarů v Konferenčním centru Štěpánská a v Konferenčním a výukovém centru Ve Smečkách, včetně odvápnění kávovarů dle potřeby; úklid v případě rozbití skla, znečistění stolů, podlahových ploch, apod.; kontrola stavu a čistoty v přízemí /vstupní hala/; v případě zjištění závad zajistit jejich odstranění;  ostatní požadavky dle pokynu Odboru správy; dle potřeby dodání a doplnění hygienického standardu (mýdlo, toaletní papír, papírové ručníky, dezinfekce)","hod",0,{"$f":"(E162*8)","v":0},{"$f":"(F162*21)","v":0},{"$f":"G162*12","v":0},{"$f":"H162*4","v":0}]
[]
[null,null,null,null,null,"Cena celkem v Kč bez DPH",{"$f":"SUM(G162:G162)","v":0},{"$f":"SUM(H162:H162)","v":0},{"$f":"SUM(I162:I162)","v":0}]
[]
["SPOTŘEBNÍ MATERIÁL včetně doplnění na příslušná místa","Druh úklidu","Druh úklidu","Měrná jednotka ks/l/bal."," ","Cena za ks/bal. v Kč bez DPH","Předpoklaná spotřeba ks/bal. za 12 měsíců","Cena za 12 měsíců v Kč bez DPH","Cena za 48 měsíců v Kč bez DPH"]
[null," ","Pytel černý,110l, 80 mikronů, 70x110 cm","ks"," ",0,18000,{"$f":"(F167*G167)","v":0},{"$f":"H167*4","v":0}]
[null,null,"Pytel černý na odpad. Koš, 30 l, 9 mikronů, 50x60 cm","ks",null,0,68000,{"$f":"(F168*G168)","v":0},{"$f":"H168*4","v":0}]
[null,null,"Pytle na WC koše, pytle do skartovacích strojů, do nádob na tříděný odpad, 70 l, 12 mikronů, 63x85 cm (případně dle skutečných požadavků na rozměr)","ks",null,0,17400,0,0]
[null,null,"Tekuté mýdlo 1 l","l",null,0,520,0,0]
[null,null,"Papírové ručníky bílé 20 ks/balení, Celulóza, 24,5x22,5 cm, dvouvrstvé","bal",null,0,460,0,0]
[null,null,"WC papír bílý dvouvrstvý Jumbo 23 velký","ks",null,0,2900,0,0]
[null,null,"WC papír bílý, třívrstvý malý","ks",null,0,1280,0,0]
[null,null,"WC dezinfekce na prkénko TORK / náplň /","l",null,0,20,0,0]
[null,null,"Dávkovač na dezinfekci WC prkénka Tork","ks",null,0,10,0,0]
[null,null,"Dezinfekce na ruce Soft Care Med H5 800 ml (náplň)","l",null,0,70,0,0]
[null,null,"Dávkovač na dezinfekci rukou Soft Care Med H5 800 ml","ks",null,0,10,0,0]
[null,null,"Zásobník na papírové ručníky do kuchyněk a sociálních zařízení","ks",null,0,20,0,0]
[]
[null,null,null,null,null,"Cena celkem v Kč bez DPH",0,{"$f":"SUM(H167:H178)","v":0},{"$f":"SUM(I167:I178)","v":0}]
[]
["Generální úklid všech prostor","Typ úklidu","Druh úklidu","Měrná jednotka m2 /ks / komplet","Množství","Počet úkonů za 48 měsíců","Cena za 1 kompletní GÚ v Kč bez DPH","Cena za 12 měsíců v Kč bez DPH","Cena za 48 měsíců v Kč bez DPH"]
[null,"2 x za 48 měsíců","Požadavky na generální úklid jsou uvedeny v Příloze č. 1 Smlouvy","komplet",2,2,0,0,{"$f":"G183*2","v":0}]
[null,null,null,null,null,null," "]
[null,null,null,null,null,"Cena celkem v Kč bez DPH",0,{"$f":"SUM(H183:H183)","v":0},{"$f":"SUM(I183:I183)","v":0}]

{"sheet":"Rozdělení prostor","index":2,"n_rows":656,"n_cols":12,"rows_kept":656,"cut":false,"hidden":false,"merged":[]}
["PROSTOR","SPECIFIKACE PŘEDMĚTU PLNĚNÍ","BUDOVA","Patro","VYUŽITÍ MÍSTNOSTI","ČÍSLO MÍSTNOSTI","m²","Dveře","Balkonové dveře","Okna","Povrch podlahy"]
["E","Chodby, haly, schodiště, hlavní vstup do budovy, kuchyňky","Sme","Přízemí","Hlavní vstup do budovy",null,null,1,null,2,"kámen"]
["E","Chodby, haly, schodiště, hlavní vstup do budovy, kuchyňky","Sme","Přízemí","Boční vstup do budovy",null,null,1,null,1,"kámen"]
["K","Balkony, dvory","Sme","Přízemí","Dvůr",null,335,null,null,null,"dlažba"]
["K","Balkony, dvory","Sme","Přízemí","Nádoby na odpad 10 ks"]
["H","Výtah osobní","Sme",null,"3 ks",null,null,null,null,null,"PVC"]
["H","Výtah nákladní","Sme",null,"2 ks",null,null,null,null,null,"PVC"]
["L","Dešťové svody, drenáže, uliční vpusti","Sme","Přízemí","Venkovní svody 2 ks"]
["L","Dešťové svody, drenáže, uliční vpusti","Sme","Přízemí","Dvorní svody 7 ks"]
["L","Dešťové svody, drenáže, uliční vpusti","Sme","Přízemí","Dvorní vpusti 2 ks"]
["E","Chodby, haly, schodiště, hlavní vstup do budovy, kuchyňky","Sme","Suterén","Schodiště","S.I",31.03,null,null,null,"kámen"]
["E","Chodby, haly, schodiště, hlavní vstup do budovy, kuchyňky","Sme","Suterén","Schodiště","S.II",5.88,null,null,null,"kámen"]
["E","Chodby, haly, schodiště, hlavní vstup do budovy, kuchyňky","Sme","Suterén","Schodiště","S.III",23.03,null,null,null,"kámen"]
["E","Chodby, haly, schodiště, hlavní vstup do budovy, kuchyňky","Sme","Suterén","Schodiště","S.IV",21.14,null,null,null,"kámen"]
["E","Chodby, haly, schodiště, hlavní vstup do budovy, kuchyňky","Sme","Suterén","KVC Hala + schodiště","S01",23,1," ",null,"dlažba"]
["E","Chodby, haly, schodiště, hlavní vstup do budovy, kuchyňky","Sme","Suterén","KVC Hlavní vstup","S02",7.9,2," ",null,"dlažba"]
["D","Zasedací místnosti, učebny","Sme","Suterén","KVC Odkládací prostor - Šatna","S03",9.57,1," ",null,"dlažba"]
["A","Archivy, sklady","Sme","Suterén","KVC  Prostor pro zařízení SR","S03A",9.57,1," ",null,"dlažba"]
["E","Chodby, haly, schodiště, hlavní vstup do budovy, kuchyňky","Sme","Suterén","KVC Kuchyňka I.","S04",8.3000000000000007,null," ",null,"dlažba"]
["D","Zasedací místnosti, učebny","Sme","Suterén","KVC Zasedací místnost Velká A","S05",51.3,1," ",null,"koberec"]
["D","Zasedací místnosti, učebny","Sme","Suterén","KVC Zasedací místnost Malá  B","S06",32.299999999999997,2," ",null,"koberec"]
["G","Hygienické zázemí (WC, umyvárny, sprchy)","Sme","Suterén","KVC Toaleta pánská I.","S07",4.1100000000000003,2," ",null,"dlažba"]
["G","Hygienické zázemí (WC, umyvárny, sprchy)","Sme","Suterén","KVC Toaleta dámská I.","S08",5.79,3," ",null,"dlažba"]
["E","Chodby, haly, schodiště, hlavní vstup do budovy, kuchyňky","Sme","Suterén","KVC Vstupní chodba","S09",5,"?"," ",null,"dlažba"]
["D","Zasedací místnosti, učebny","Sme","Suterén","KVC Multimediální sál / výuka C","S10",41.6,null," ",null,"koberec"]
["E","Chodby, haly, schodiště, hlavní vstup do budovy, kuchyňky","Sme","Suterén","KVC Kuchyňka II.","S11",19.7,null," ",null,"dlažba"]
["E","Chodby, haly, schodiště, hlavní vstup do budovy, kuchyňky","Sme","Suterén","KVC Chodba","S11A",14,null," ",null,"koberec"]
["D","Zasedací místnosti, učebny","Sme","Suterén","KVC Učebna I. D1","S12",11.1,1," ",null,"koberec"]
["D","Zasedací místnosti, učebny","Sme","Suterén","KVC Učebna II. D2","S13",10.8,1," ",null,"koberec"]
["D","Zasedací místnosti, učebny","Sme","Suterén","KVC Relaxační místnost E","S14",26.8,1," ",null,"koberec"]
["D","Zasedací místnosti, učebny","Sme","Suterén","KVC Pohybová relaxační místnost F","S15",14,1," ",null,"koberec"]
["E","Chodby, haly, schodiště, hlavní vstup do budovy, kuchyňky","Sme","Suterén","KVC Chodba + relax zóna","S16",42,null," ",null,"koberec"]
["G","Hygienické zázemí (WC, umyvárny, sprchy)","Sme","Suterén","KVC Toaleta Uni","S17",5.4,4," ",null,"dlažba"]
["G","Hygienické zázemí (WC, umyvárny, sprchy)","Sme","Suterén","KVC Hygienické zázemí Sprcha","S18",11.8,1," ",null,"dlažba"]
["A","Archivy, sklady","Sme","Suterén","KVC Sklad","S19",4.4000000000000004,1," ",null,"dlažba"]
["A","Archivy, sklady","Sme","Suterén","KVC Technická místnost","S20",3.8,1," ",null,"beton"]
["M","Archivy, sklady","Sme","Suterén","Úklidová místnost","S23",0,1," ",null,"dlažba"]
["E","Chodby, haly, schodiště, hlavní vstup do budovy, kuchyňky","Sme","Suterén","chodba","S34",7.34,null,null,null,"dlažba"]
["A","Archivy, sklady","Sme","Suterén","archiv 1","S35",11.9,1," ",null,"beton"]
["A","Archivy, sklady","Sme","Suterén","archiv 2","S36",50.87,1," ",null,"beton"]
["A","Archivy, sklady","Sme","Suterén","archiv 3","S37",13.34,1," ",null,"beton"]
["F","Stravovací prostory","Sme","Suterén","Kuchyň - přípravna",null,0,null,null,null,"dlažba"," "]
["F","Stravovací prostory","Sme","Suterén","Jídelna",null,82.42,null,null,null,"dlažba"," "]
["C","Kancelář","Sme","Přízemí","Kancelář","P01",21.48,1," ",2,"koberec"]
["E","Chodby, haly, schodiště, hlavní vstup do budovy, kuchyňky","Sme","Přízemí","Chodba podatelna","P01a",8.6999999999999993,1," ",null,"PVC"]
["G","Hygienické zázemí (WC, umyvárny, sprchy)","Sme","Přízemí","WC","P01b",4.01,2," ",null,"dlažba"]
["E","Chodby, haly, schodiště, hlavní vstup do budovy, kuchyňky","Sme","Přízemí","Chodba podatelna","P01c",9.73,1," ",null,"PVC"]
["E","Chodby, haly, schodiště, hlavní vstup do budovy, kuchyňky","Sme","Přízemí","Chodba podatelna","P01d",16.18,1," ",null,"PVC"]
["C","Kancelář","Sme","Přízemí","Kancelář","P01e",36.71,1," ",1,"koberec"]
["C","Kancelář","Sme","Přízemí","Kancelář","P01f",19.13,2," ",1,"koberec"]
["C","Kancelář","Sme","Přízemí","Kancelář","P01g",36.950000000000003,1," ",3,"koberec"]
["E","Chodby, haly, schodiště, hlavní vstup do budovy, kuchyňky","Sme","Přízemí","Chodba podatelna","P01h",14.33,1,null,null,"PVC"]
["E","Chodby, haly, schodiště, hlavní vstup do budovy, kuchyňky","Sme","Přízemí","Chodba recepce + část hlavní","P02",18.059999999999999,1,null,null,"dlažba"]
["E","Chodby, haly, schodiště, hlavní vstup do budovy, kuchyňky","Sme","Přízemí","Chodba hlavní vstup","P03",18.350000000000001,1,null,null,"dlažba"]
["E","Chodby, haly, schodiště, hlavní vstup do budovy, kuchyňky","Sme","Přízemí","Recepce","P04",15.94,null,null,null,"dlažba"]
["A","Archivy, sklady","Sme","Přízemí","Chodba východ do Václavského náměstí","P06",16.11,null,null,null,"?"]
["G","Hygienické zázemí (WC, umyvárny, sprchy)","Sme","Přízemí","WC recepce","P14",2.81,1,null,null,"dlažba"]
["I","Průjezdy, chodníky","Sme","Přízemí","Průjezd","P18",46.85,2,null,null,"dlažba"]
["I","Průjezdy, chodníky","Sme","Přízemí","Chodníky (okolo objektu) 2x",null,110.93," ",null,null,null," "]
["A","Archivy, sklady","Sme","Přízemí","Sklad Garáž","P25",24.44,1,null,null,"dlažba"]
["M","Dieselagregát","Sme","Přízemí","Dieselagregát","P26",0,1,null,null,"dlažba"]
["A","Archivy, sklady","Sme","Přízemí","Kotelna sklad","P27",95.83,1,null,null,"dlažba"]
["A","Archivy, sklady","Sme","Přízemí","Chodba u výtahu","P27a",11.42,"?",null,null,"dlažba"]
["M","Kotelna","Sme","Přízemí","Kotelna ","P27b",0,"?",null,null,"dlažba"]
["A","Archivy, sklady","Sme","Přízemí","Sklad ústředna","P28",12.57,2,null,2,"PVC"]
["A","Archivy, sklady","Sme","Přízemí","Sklad ústředna","P29",14.91,1,null,null,"PVC"]
["A","Archivy, sklady","Sme","Přízemí","Sklad ústředna kuch.","P30",3.25,1,null,null,"PVC"]
["A","Archivy, sklady","Sme","Přízemí","Sklad ústředna zázemí","P30a",6.32,1,null,null,"dlažba"]
["M","Úklidová místnost","Sme","Přízemí","Úklidová místnost","P31",9.2200000000000006,2,null,1,"PVC"]
["M","Úklidová místnost","Sme","Přízemí","Úklidová místnost","P32",7.47,1,null,null,"PVC"]
["A","Archivy, sklady","Sme","Přízemí","Rozvodna el.","P33",24.8,1,null,null,"beton"]
["M","Úklidová místnost","Sme","Přízemí","Úklidová místnost","P34",9.3800000000000008,2,null,null,"beton"]
["M","Úklidová místnost","Sme","Přízemí","Úklidová místnost","P35",4.84,1,null,null,"beton"]
["C","Kancelář","Sme","Přízemí","Kancelář","P37",18.16,1,null,1,"koberec"]
["C","Kancelář","Sme","Přízemí","Kancelář","P37a",14.84,2,null,1,"koberec"]
["C","Kancelář","Sme","Přízemí","Kancelář","P38",15.41,1,null,1,"koberec"]
["E","Chodby, haly, schodiště, hlavní vstup do budovy, kuchyňky","Sme","Přízemí","Schodiště","P.I",25.42,null,null,2,"kámen"]
["E","Chodby, haly, schodiště, hlavní vstup do budovy, kuchyňky","Sme","Přízemí","Schodiště","P.II",56.75,1,null,null,"kámen"]
["E","Chodby, haly, schodiště, hlavní vstup do budovy, kuchyňky","Sme","Přízemí","Schodiště","P.III",22.28,1,null,null,"kámen"]
["E","Chodby, haly, schodiště, hlavní vstup do budovy, kuchyňky","Sme","Přízemí","Schodiště","P.IV",26.93,1,null,null,"kámen"]
["E","Chodby, haly, schodiště, hlavní vstup do budovy, kuchyňky","Sme","Mezanin","Schodiště","M. I",10.72,null,null,null,"kámen"]
["E","Chodby, haly, schodiště, hlavní vstup do budovy, kuchyňky","Sme","Mezanin","Schodiště","M. III",20.85,null,null,null,"kámen"]
["E","Chodby, haly, schodiště, hlavní vstup do budovy, kuchyňky","Sme","Mezanin","Schodiště","M. IV",21.38,null,null,null,"kámen"]
["A","Archivy, sklady","Sme","Mezanin","Archiv","M1",34.520000000000003,1,null,2,"PVC"]
["G","Hygienické zázemí (WC, umyvárny, sprchy)","Sme","Mezanin","WC u Ilči","M11",3.88,1,null,1,"dlažba"]
["C","Kancelář","Sme","Mezanin","Kancelář","M13",73.349999999999994,5,null,7,"koberec"]
["C","Kancelář","Sme","Mezanin","Kancelář","M13a",11.33,1,null,1,"koberec"]
["G","Hygienické zázemí (WC, umyvárny, sprchy)","Sme","Mezanin","WC","M19",6.74," "," ",1,"dlažba"]
["A","Archivy, sklady","Sme","Mezanin","Sklad KP","M1a",25.65,1," ",2,"PVC"]
["A","Archivy, sklady","Sme","Mezanin","Sklad KP výtah","M2",17.89,1," ",1,"PVC"]
["G","Hygienické zázemí (WC, umyvárny, sprchy)","Sme","Mezanin","WC","M20",2.52,null," ",null,"dlažba"]
["G","Hygienické zázemí (WC, umyvárny, sprchy)","Sme","Mezanin","WC","M21",2.36,1," ",1,"dlažba"]
["C","Kancelář","Sme","Mezanin","kancelář","M22",16.91,1," ",2,"PVC"]
["C","Kancelář","Sme","Mezanin","kancelář","M23",15.64,1," ",1,"PVC"]
["C","Kancelář","Sme","Mezanin","kancelář","M24",9.9,1," ",1,"PVC"]
["A","Archivy, sklady","Sme","Mezanin","chodba","M25",5.54,1," ",null,"PVC"]
["A","Archivy, sklady","Sme","Mezanin","chodba","M26",11.98,1," ",null,"PVC"]
["E","Chodby, haly, schodiště, hlavní vstup do budovy, kuchyňky","Sme","Mezanin","chodba","M26a",6.02,1," ",null,"PVC"]
["C","Kancelář","Sme","Mezanin","kancelář","M27",15.57,1," ",1,"PVC"]
["G","Hygienické zázemí (WC, umyvárny, sprchy)","Sme","Mezanin","WC","M28",3.85,1,null,null,"dlažba"]
["G","Hygienické zázemí (WC, umyvárny, sprchy)","Sme","Mezanin","WC","M28a",4.55,2,null,1,"dlažba"]
["G","Hygienické zázemí (WC, umyvárny, sprchy)","Sme","Mezanin","WC","M29",1.81,1,null,null,"dlažba"]
["A","Archivy, sklady","Sme","Mezanin","sklad","M29a",5.07,1,null,null,"PVC"]
["A","Archivy, sklady","Sme","Mezanin","Sklad KP","M3",24.85,1,null,2,"PVC"]
["E","Chodby, haly, schodiště, hlavní vstup do budovy, kuchyňky","Sme","Mezanin","chodba","M30",5.54,1,null,null,"PVC"]
["B","GŘ SZIF, ŘS, ŘO, Sekretariáty","Sme","Mezanin","Kancelář","M31",26.6,2,null,1,"koberec"]
["E","Chodby, haly, schodiště, hlavní vstup do budovy, kuchyňky","Sme","Mezanin","Chodba Rozpočet","M32",13.52,1,null,null,"dlažba"]
["E","Chodby, haly, schodiště, hlavní vstup do budovy, kuchyňky","Sme","Mezanin","Chodba Rozpočet","M32a",2.21,1,null,null,"dlažba"]
["G","Hygienické zázemí (WC, umyvárny, sprchy)","Sme","Mezanin","WC","M32b",0.75,1,null,null,"dlažba"]
["G","Hygienické zázemí (WC, umyvárny, sprchy)","Sme","Mezanin","WC","M33",2.89,1,null,null,"dlažba"]
["E","Chodby, haly, schodiště, hlavní vstup do budovy, kuchyňky","Sme","Mezanin","kuchyňka","M34",6.41,1,null,null,"dlažba"]
["M","Úklidová místnost","Sme","Mezanin","Úklidová místnost","M35",0.85,null,null,null,"dlažba"]
["A","Archivy, sklady","Sme","Mezanin","šatna","M36",6.69,2,null,null,"dlažba"]
["A","Archivy, sklady","Sme","Mezanin","archiv","M37",7.87,1,null,null,"dlažba"]
["A","Archivy, sklady","Sme","Mezanin","sklad","M38",4.76,null,null,null,"koberec"]
["A","Archivy, sklady","Sme","Mezanin","sklad","M4",10.45,1,null,1,"PVC"]
["C","Kancelář","Sme","Mezanin","Kancelář","M4a",18.64,1,null,2,"koberec"]
["E","Chodby, haly, schodiště, hlavní vstup do budovy, kuchyňky","Sme","Mezanin","Chodba KP","M5",15.95,3,null,null,"PVC"]
["E","Chodby, haly, schodiště, hlavní vstup do budovy, kuchyňky","Sme","Mezanin","Chodba KP","M6",8.56,1,null,null,"PVC"]
["E","Chodby, haly, schodiště, hlavní vstup do budovy, kuchyňky","Sme","1. patro","Schodiště","1.I",31.67,2,null,2,"Kámen"]
["E","Chodby, haly, schodiště, hlavní vstup do budovy, kuchyňky","Sme","1. patro","Schodiště","1.II",26.29,2,null,1,"Kámen"]
["E","Chodby, haly, schodiště, hlavní vstup do budovy, kuchyňky","Sme","1. patro","Schodiště","1.III",20.85,2,null,1,"Kámen"]
["E","Chodby, haly, schodiště, hlavní vstup do budovy, kuchyňky","Sme","1. patro","Schodiště","1.IV",28.42,1,null,2,"Kámen"]
["K","Balkony, dvory","Sme","1. patro","Balkon ",111,8.1999999999999993,null,null,null,"dlažba"]
["K","Balkony, dvory","Sme","1. patro","Balkon ",116,13.5,null,null,null,"dlažba"]
["A","Archivy, sklady","Sme","1. patro","sklad",101,26.97,2,null,1,"koberec"]
["A","Archivy, sklady","Sme","1. patro","sklad",102,20.28,1,null,2,"koberec"]
["C","Kancelář","Sme","1. patro","Kancelář","102a",16.579999999999998,1,null,2,"PVC"]
["C","Kancelář","Sme","1. patro","Kancelář",103,19.77,2,null,2,"PVC"]
["E","Chodby, haly, schodiště, hlavní vstup do budovy, kuchyňky","Sme","1. patro","chodba",104,5.79,2,null,null,"PVC"]
["E","Chodby, haly, schodiště, hlavní vstup do budovy, kuchyňky","Sme","1. patro","chodba","104a",6.31,1,null,null,"PVC"]
["C","Kancelář","Sme","1. patro","Kancelář",105,11.81,1,null,1,"parkety"]
["C","Kancelář","Sme","1. patro","Kancelář",106,12.33,2,null,1,"parkety"]
["E","Chodby, haly, schodiště, hlavní vstup do budovy, kuchyňky","Sme","1. patro","Kuchyňka",107,12.37,1,null,null,"PVC"]
["C","Kancelář","Sme","1. patro","Kancelář",108,32.590000000000003,1,null,1,"koberec"]
["C","Kancelář","Sme","1. patro","Kancelář",109,20.18,1,null,1,"koberec"]
["C","Kancelář","Sme","1. patro","Kancelář",110,18.2,2,null,1,"koberec"]
["C","Kancelář","Sme","1. patro","Kancelář",111,18.48,2,1,1,"koberec"]
["B","GŘ SZIF, ŘS, ŘO, Sekretariáty","Sme","1. patro","Kancelář","111a",20.96,2,null,1,"koberec"]
["B","GŘ SZIF, ŘS, ŘO, Sekretariáty","Sme","1. patro","Kancelář",112,35.79,2,null,2,"koberec"]
["B","GŘ SZIF, ŘS, ŘO, Sekretariáty","Sme","1. patro","Kancelář",116,37.9,1,null,4,"parkety"]
["B","GŘ SZIF, ŘS, ŘO, Sekretariáty","Sme","1. patro","Kancelář",117,28.04,2,null,2,"koberec"]
["B","GŘ SZIF, ŘS, ŘO, Sekretariáty","Sme","1. patro","Kancelář",118,13.79,1,null,1,"koberec"]
["C","Kancelář","Sme","1. patro","Kancelář",128,17.63,1,null,1,"koberec"]
["C","Kancelář","Sme","1. patro","Kancelář",129,12.6,1,null,1,"koberec"]
["C","Kancelář","Sme","1. patro","Kancelář",130,13.28,2,null,1,"koberec"]
["C","Kancelář","Sme","1. patro","Kancelář",131,9.24,1,null,1,"koberec"]
["A","Kanceláře pod dozorem","Sme","1. patro","Server",135,14.28,null,null,1,"PVC"]
["A","Kanceláře pod dozorem","Sme","1. patro","Server",136,15.98,2,null,1,"PVC"]
["C","Kancelář","Sme","1. patro","Kancelář",137,16.88,2,null,1,"koberec"]
["C","Kancelář","Sme","1. patro","Kancelář",138,15.85,null,null,1,"koberec"]
["C","Kancelář","Sme","1. patro","Kancelář",139,55.39,1,null,3,"koberec"]
["C","Kancelář","Sme","1. patro","Kancelář",140,36.46,1,null,2,"koberec"]
["C","Kancelář","Sme","1. patro","Kancelář",141,18.29,1,null,1,"koberec"]
["C","Kancelář","Sme","1. patro","Kancelář",142,49.05,1,null,3,"koberec"]
["C","Kancelář","Sme","1. patro","Kancelář",143,38.549999999999997,1,null,2,"koberec"]
["C","Kancelář","Sme","1. patro","Kancelář",144,15.42,1,null,1,"koberec"]
["C","Kancelář","Sme","1. patro","Kancelář",145,15.77,1,null,1,"koberec"]
["C","Kancelář","Sme","1. patro","Kancelář",146,11.83,1,null,1,"koberec"]
["E","Chodby, haly, schodiště, hlavní vstup do budovy, kuchyňky","Sme","1. patro","Kuchyňka",149,8.27,1,null,null,"PVC"]
["E","Chodby, haly, schodiště, hlavní vstup do budovy, kuchyňky","Sme","1. patro","chodba",151,18.45,2,null,null,"PVC"]
["E","Chodby, haly, schodiště, hlavní vstup do budovy, kuchyňky","Sme","1. patro","chodba","151a",5.8,null,null,null,"PVC"]
["M"," ","Sme","1. patro","AGROPROJEKT",152,0,null,null,null,"lino"]
["M"," ","Sme","1. patro","AGROPROJEKT",156,0,null,null,null,"lino"]
["M","  ","Sme","1. patro","AGROPROJEKT",157,0," ",null,null,"lino"]
["C","Kancelář","Sme","1. patro","Kancelář",158,16.05,2,null,1,"koberec"]
["M"," ","Sme","1. patro","AGROPROJEKT",159,0," ",null,null,"lino"]
["G","Hygienické zázemí (WC, umyvárny, sprchy)","Sme","1. patro","WC","160",1.7,1,null,1,"dlažba"]
["G","Hygienické zázemí (WC, umyvárny, sprchy)","Sme","1. patro","WC","162",1.05,1,null,null,"dlažba"]
["G","Hygienické zázemí (WC, umyvárny, sprchy)","Sme","1. patro","WC","163",1.06,1,null,null,"dlažba"]
["G","Hygienické zázemí (WC, umyvárny, sprchy)","Sme","1. patro","WC","164",2.96,1,null,null,"dlažba"]
["G","Hygienické zázemí (WC, umyvárny, sprchy)","Sme","1. patro","WC","165",1.37,1,null,null,"dlažba"]
["G","Hygienické zázemí (WC, umyvárny, sprchy)","Sme","1. patro","WC","166",2.48,1,null,null,"dlažba"]
["G","Hygienické zázemí (WC, umyvárny, sprchy)","Sme","1. patro","WC","167",1.59,1,null,null,"dlažba"]
["M","Úklidová místnost",null,"1. patro","Úklidová místnost","168",1.37,1,null,null,"dlažba"]
["E","Chodby, haly, schodiště, hlavní vstup do budovy, kuchyňky","Sme","1. patro","chodba","169",45.35,null,null,null,"PVC"]
["G","Hygienické zázemí (WC, umyvárny, sprchy)","Sme","1. patro","WC","171",1.71,1,null,1,"dlažba"]
["G","Hygienické zázemí (WC, umyvárny, sprchy)","Sme","1. patro","WC","172",1.65,1,null,1,"dlažba"]
["G","Hygienické zázemí (WC, umyvárny, sprchy)","Sme","1. patro","WC","173",3.16,1,null,null,"dlažba"]
["G","Hygienické zázemí (WC, umyvárny, sprchy)","Sme","1. patro","WC","174",1.53,1,null,null,"dlažba"]
["G","Hygienické zázemí (WC, umyvárny, sprchy)","Sme","1. patro","WC","175",2.2000000000000002,1,null,null,"dlažba"]
["E","Chodby, haly, schodiště, hlavní vstup do budovy, kuchyňky","Sme","1. patro","chodba","176",26.92,null,null,null,"PVC"]
["E","Chodby, haly, schodiště, hlavní vstup do budovy, kuchyňky","Sme","1. patro","chodba","177",11.88,null,null,null,"PVC"]
["E","Chodby, haly, schodiště, hlavní vstup do budovy, kuchyňky","Sme","1. patro","chodba","177a",5.3,1,null,null,"PVC"]
["E","Chodby, haly, schodiště, hlavní vstup do budovy, kuchyňky","Sme","1. patro","Kuchyňka","178",2.48,1,null,null,"dlažba"]
["E","Chodby, haly, schodiště, hlavní vstup do budovy, kuchyňky","Sme","1. patro","chodba","180",38,null,null,null,"PVC"]
["E","Chodby, haly, schodiště, hlavní vstup do budovy, kuchyňky","Sme","1. patro","chodba","181",6.74,2,null,null,"PVC"]
["G","Hygienické zázemí (WC, umyvárny, sprchy)","Sme","1. patro","WC","182",3.39,1,null,1,"dlažba"]
["M","Úklidová místnost",null,"1. patro","Úklidová místnost","183",1.9,1,null,null,"dlažba"]
["G","Hygienické zázemí (WC, umyvárny, sprchy)","Sme","1. patro","WC","184",3.85,1,null,2,"dlažba"]
["E","Chodby, haly, schodiště, hlavní vstup do budovy, kuchyňky","Sme","2. patro","Schodiště","2.I ",31.62,2,null,2,"Kámen"]
["E","Chodby, haly, schodiště, hlavní vstup do budovy, kuchyňky","Sme","2. patro","Schodiště","2.II  ",26.29,2,null,1,"Kámen"]
["E","Chodby, haly, schodiště, hlavní vstup do budovy, kuchyňky","Sme","2. patro","Schodiště","2.III  ",20.85,2,null,1,"Kámen"]
["E","Chodby, haly, schodiště, hlavní vstup do budovy, kuchyňky","Sme","2. patro","Schodiště","2.IV  ",13.47,2,null,2,"Kámen"]
["C","Kancelář","Sme","2. patro","Kancelář",200,17.649999999999999,2,null,2,"koberec"]
["C","Kancelář","Sme","2. patro","Kancelář",201,8.65,null,null,2,"koberec"]
["C","Kancelář","Sme","2. patro","Kancelář",202,25.66,2,null,2,"koberec"]
["C","Kancelář","Sme","2. patro","Kancelář",203,20.25,1,null,2,"koberec"]
["E","Chodby, haly, schodiště, hlavní vstup do budovy, kuchyňky","Sme","2. patro","Kuchyňka",208,2.85,1,null,null,"dlažba"]
["A","Archivy, sklady","Sme","2. patro","Sklad",209,10.07,1,null,null,"PVC"]
["C","Kancelář","Sme","2. patro","Kancelář",210,32.729999999999997,2,null,2,"koberec"]
["C","Kancelář","Sme","2. patro","Kancelář",211,21.1,2,null,1,"koberec"]
["C","Kancelář","Sme","2. patro","Kancelář",212,19.78,2,null,1,"koberec"]
["C","Kancelář","Sme","2. patro","Kancelář",213,38.64,1,null,2,"koberec"]
["B","GŘ SZIF, ŘS, ŘO, Sekretariáty","Sme","2. patro","Kancelář","214a",18.239999999999998,1,null,1,"koberec"]
["B","GŘ SZIF, ŘS, ŘO, Sekretariáty","Sme","2. patro","Kancelář","214b",16.97,2,null,1,"koberec"]
["B","GŘ SZIF, ŘS, ŘO, Sekretariáty","Sme","2. patro","Kancelář",216,25.74,1,null,2,"koberec"]
["B","GŘ SZIF, ŘS, ŘO, Sekretariáty","Sme","2. patro","Kancelář",219,38.24,1,null,5,"parkety"]
["B","GŘ SZIF, ŘS, ŘO, Sekretariáty","Sme","2. patro","Kancelář",220,27.49,1,null,2,"koberec"]
["C","Kancelář","Sme","2. patro","Kancelář",221,14.54,2,null,1,"koberec"]
["C","Kancelář","Sme","2. patro","Kancelář",222,14.74,1,null,1,"koberec"]
["E","Chodby, haly, schodiště, hlavní vstup do budovy, kuchyňky","Sme","2. patro","chodba",223,3.68,1,null,null,"koberec"]
["C","Kancelář","Sme","2. patro","Kancelář","223a",30.69,2,null,2,"koberec"]
["C","Kancelář","Sme","2. patro","Kancelář","223b",14.39,1,null,1,"koberec"]
["E","Chodby, haly, schodiště, hlavní vstup do budovy, kuchyňky","Sme","2. patro","chodba",224,4.75,1,null,null,"koberec"]
["C","Kancelář","Sme","2. patro","Kancelář","224a",17.21,1,null,1,"koberec"]
["C","Kancelář","Sme","2. patro","Kancelář","224b",14.34,1,null,1,"koberec"]
["C","Kancelář","Sme","2. patro","Kancelář","224c",18.72,1,null,1,"koberec"]
["C","Kancelář","Sme","2. patro","Kancelář",229,16.68,1,null,1,"koberec"]
["C","Kancelář","Sme","2. patro","Kancelář",230,12.98,1,null,1,"koberec"]
["C","Kancelář","Sme","2. patro","Kancelář",231,14.49,1,null,1,"koberec"]
["C","Kancelář","Sme","2. patro","Kancelář",232,9.15,1,null,1,"koberec"]
["C","Kancelář","Sme","2. patro","Kancelář",233,19.45,2,null,1,"koberec"]
["B","GŘ SZIF, ŘS, ŘO, Sekretariáty","Sme","2. patro","Kancelář",234,32.08,2,null,2,"koberec"]
["B","GŘ SZIF, ŘS, ŘO, Sekretariáty","Sme","2. patro","Kancelář",235,17.41,2,null,1,"koberec"]
["E","Chodby, haly, schodiště, hlavní vstup do budovy, kuchyňky","Sme","2. patro","chodba",236,4.3899999999999997,0,null,0,"koberec"]
["B","GŘ SZIF, ŘS, ŘO, Sekretariáty","Sme","2. patro","Kancelář","236a",20.96,1,null,1,"koberec"]
["C","Kancelář","Sme","2. patro","Kancelář","236b",11.41,1,null,1,"koberec"]
["C","Kancelář","Sme","2. patro","Kancelář","236c",37.229999999999997,1,null,2,"koberec"]
["C","Kancelář","Sme","2. patro","Kancelář",241,15.85,2,null,1,"koberec"]
["A","Archivy, sklady","Sme","2. patro","Spisovna","241a",12,0,null,0,"koberec"]
["C","Kancelář","Sme","2. patro","Kancelář",242,16,1,null,1,"koberec"]
["C","Kancelář","Sme","2. patro","Kancelář",243,12.56,1,null,1,"koberec"]
["E","Chodby, haly, schodiště, hlavní vstup do budovy, kuchyňky","Sme","2. patro","chodba",247,18.149999999999999,2,null,2,"PVC"]
["C","Kancelář","Sme","2. patro","Kancelář",249,26.83,2,null,2,"koberec"]
["C","Kancelář","Sme","2. patro","Kancelář",250,19.98,2,null,2,"koberec"]
["C","Kancelář","Sme","2. patro","Kancelář",251,19.079999999999998,2,null,2,"koberec"]
["G","Hygienické zázemí (WC, umyvárny, sprchy)","Sme","2. patro","WC","250A",1.7,1,null,null,"dlažba"]
["E","Chodby, haly, schodiště, hlavní vstup do budovy, kuchyňky","Sme","2. patro","Kuchyňka","252",3.54,1,null,null,"dlažba"]
["E","Chodby, haly, schodiště, hlavní vstup do budovy, kuchyňky","Sme","2. patro","chodba","252a",2.92,1,null,null,"koberec"]
["E","Chodby, haly, schodiště, hlavní vstup do budovy, kuchyňky","Sme","2. patro","Kuchyňka","253",3.85,1,null,null,"PVC"]
["G","Hygienické zázemí (WC, umyvárny, sprchy)","Sme","2. patro","WC","254",1.27,1,null,null,"dlažba"]
["G","Hygienické zázemí (WC, umyvárny, sprchy)","Sme","2. patro","WC","255",1.51,1,null,null,"dlažba"]
["G","Hygienické zázemí (WC, umyvárny, sprchy)","Sme","2. patro","WC","256",1.1599999999999999,1,null,null,"dlažba"]
["G","Hygienické zázemí (WC, umyvárny, sprchy)","Sme","2. patro","WC","257",0.97,1,null,null,"dlažba"]
["E","Chodby, haly, schodiště, hlavní vstup do budovy, kuchyňky","Sme","2. patro","chodba","258",46.6,1,null,null,"PVC"]
["G","Hygienické zázemí (WC, umyvárny, sprchy)","Sme","2. patro","WC","260",2.37,1,null,2,"dlažba"]
["G","Hygienické zázemí (WC, umyvárny, sprchy)","Sme","2. patro","WC","261",1.17,1,null,null,"dlažba"]
["G","Hygienické zázemí (WC, umyvárny, sprchy)","Sme","2. patro","WC","262",3.99,1,null,null,"dlažba"]
["G","Hygienické zázemí (WC, umyvárny, sprchy)","Sme","2. patro","WC","263",1.84,1,null,null,"dlažba"]
["G","Hygienické zázemí (WC, umyvárny, sprchy)","Sme","2. patro","WC","264",1.51,1,null,null,"dlažba"]
["E","Chodby, haly, schodiště, hlavní vstup do budovy, kuchyňky","Sme","2. patro","chodba","265",23.95,null,null,null,"PVC"]
["G","Hygienické zázemí (WC, umyvárny, sprchy)","Sme","2. patro","WC","266",1.45,1,null,null,"dlažba"]
["E","Chodby, haly, schodiště, hlavní vstup do budovy, kuchyňky","Sme","2. patro","Kuchyňka","267",0.9,1,null,null,"dlažba"]
["E","Chodby, haly, schodiště, hlavní vstup do budovy, kuchyňky","Sme","2. patro","chodba","268",16.59,null,null,1,"PVC"]
["E","Chodby, haly, schodiště, hlavní vstup do budovy, kuchyňky","Sme","2. patro","chodba","268a",7.11,1,null,null,"PVC"]
["E","Chodby, haly, schodiště, hlavní vstup do budovy, kuchyňky","Sme","2. patro","chodba","270",29.37,1,null,1,"PVC"]
["E","Chodby, haly, schodiště, hlavní vstup do budovy, kuchyňky","Sme","2. patro","chodba","271",10.29,null,null,null,"PVC"]
["E","Chodby, haly, schodiště, hlavní vstup do budovy, kuchyňky","Sme","2. patro","chodba","272",3.16,1,null,null,"PVC"]
["G","Hygienické zázemí (WC, umyvárny, sprchy)","Sme","2. patro","WC","273",2.0299999999999998,1,null,1,"dlažba"]
["G","Hygienické zázemí (WC, umyvárny, sprchy)","Sme","2. patro","WC","274",1.06,1,null,1,"dlažba"]
["G","Hygienické zázemí (WC, umyvárny, sprchy)","Sme","2. patro","WC","275",0.91,1,null,1,"dlažba"]
["G","Hygienické zázemí (WC, umyvárny, sprchy)","Sme","2. patro","WC","276",0.93,1,null,1,"dlažba"]
["G","Hygienické zázemí (WC, umyvárny, sprchy)","Sme","2. patro","WC","277",1.81,1,null,null,"dlažba"]
["G","Hygienické zázemí (WC, umyvárny, sprchy)","Sme","2. patro","WC","278",2.4,1,null,null,"dlažba"]
["E","Chodby, haly, schodiště, hlavní vstup do budovy, kuchyňky","Sme","2. patro","chodba","279",8.73,null,null,2,"beton"]
["E","Chodby, haly, schodiště, hlavní vstup do budovy, kuchyňky","Sme","2. patro","chodba","280",10.34,1,null,1,"PVC"]
["M","Úklidová místnost","Sme","2. patro","Úklidová místnost","281",1.58,1,null,null,"PVC"]
["E","Chodby, haly, schodiště, hlavní vstup do budovy, kuchyňky","Sme","2. patro","chodba","282",10.98,null,null,null,"PVC"]
["E","Chodby, haly, schodiště, hlavní vstup do budovy, kuchyňky","Sme","3. patro","Schodiště","3.I",31.51,2,null,2,"Kámen"]
["E","Chodby, haly, schodiště, hlavní vstup do budovy, kuchyňky","Sme","3. patro","Schodiště","3.II",26.23,2,null,1,"Kámen"]
["E","Chodby, haly, schodiště, hlavní vstup do budovy, kuchyňky","Sme","3. patro","Schodiště","3.III",20.88,2,null,1,"Kámen"]
["E","Chodby, haly, schodiště, hlavní vstup do budovy, kuchyňky","Sme","3. patro","Schodiště","3.IV",8.4,2,null,2,"Kámen"]
["C","Kancelář","Sme","3. patro","Kancelář",300,17.399999999999999,1,null,2,"koberec"]
["C","Kancelář","Sme","3. patro","Kancelář",301,15.38,2,null,1,"koberec"]
["C","Kancelář","Sme","3. patro","Kancelář","301a",8.61,null,null,2,"koberec"]
["C","Kancelář","Sme","3. patro","Kancelář",302,9.92,1,null,1,"koberec"]
["C","Kancelář","Sme","3. patro","Kancelář",303,20.67,1,null,2,"koberec"]
["E","Chodby, haly, schodiště, hlavní vstup do budovy, kuchyňky","Sme","3. patro","Kuchyňka",309,2.87,1,null,null,"PVC"]
["A","Archivy, sklady","Sme","3. patro","Archív",310,9.02,1,null,null,"dlažba"]
["B","GŘ SZIF, ŘS, ŘO, Sekretariáty","Sme","3. patro","Kancelář",311,32.869999999999997,2,null,2,"parkety"]
["E","Chodby, haly, schodiště, hlavní vstup do budovy, kuchyňky","Sme","3. patro","chodba","311a",3.38,1,null,null,"koberec"]
["B","GŘ SZIF, ŘS, ŘO, Sekretariáty","Sme","3. patro","Kancelář",312,20.350000000000001,1,null,1,"koberec"]
["C","Kancelář","Sme","3. patro","Kancelář",313,19.91,1,null,1,"koberec"]
["C","Kancelář","Sme","3. patro","Kancelář",314,13.38,1,null,1,"koberec"]
["E","Chodby, haly, schodiště, hlavní vstup do budovy, kuchyňky","Sme","3. patro","chodba","314a",2.77,1,null,null,"koberec"]
["C","Kancelář","Sme","3. patro","Kancelář",315,26.63,1,null,2,"koberec"]
["D","Zasedací místnosti, učebny","Sme","3. patro","Zasedací místnost",320,35.57,2,null,2,"PVC"]
["C","Kancelář","Sme","3. patro","Kancelář","320a",22.86,1,null,1,"parkety"]
["B","GŘ SZIF, ŘS, ŘO, Sekretariáty","Sme","3. patro","Kancelář",321,38.840000000000003,1,null,5,"parkety"]
["B","GŘ SZIF, ŘS, ŘO, Sekretariáty","Sme","3. patro","Kancelář",322,43.65,3,null,3,"parkety"]
["C","Kancelář","Sme","3. patro","Kancelář",323,14.19,1,null,1,"PVC"]
["C","Kancelář","Sme","3. patro","Kancelář","324a",16.100000000000001,1,null,1,"koberec"]
["C","Kancelář","Sme","3. patro","Kancelář","324b",17.940000000000001,2,null,1,"koberec"]
["B","GŘ SZIF, ŘS, ŘO, Sekretariáty","Sme","3. patro","Kancelář",325,32.44,1,null,2,"koberec"]
["B","GŘ SZIF, ŘS, ŘO, Sekretariáty","Sme","3. patro","Kancelář",326,19.53,2,null,1,"koberec"]
["C","Kancelář","Sme","3. patro","Kancelář",330,16.84,1,null,1,"koberec"]
["C","Kancelář","Sme","3. patro","Kancelář",331,12.99,1,null,1,"koberec"]
["C","Kancelář","Sme","3. patro","Kancelář","331a",14.71,2,null,1,"koberec"]
["A","Kanceláře pod dozorem","Sme","3. patro","Server",332,8.91,1,null,1,"PVC"]
["C","Kancelář","Sme","3. patro","Kancelář",333,38.979999999999997,2,null,2,"koberec"]
["C","Kancelář","Sme","3. patro","Kancelář",334,32.86,1,null,2,"koberec"]
["C","Kancelář","Sme","3. patro","Kancelář",335,17.14,1,null,1,"koberec"]
["B","GŘ SZIF, ŘS, ŘO, Sekretariáty","Sme","3. patro","Sekretariát",336,21.59,2,null,1,"parkety"]
["C","Kancelář","Sme","3. patro","Kancelář","336a",16.05,2,null,1,"koberec"]
["B","GŘ SZIF, ŘS, ŘO, Sekretariáty","Sme","3. patro","Kancelář",337,37.340000000000003,1,null,2,"koberec"]
["G","Hygienické zázemí (WC, umyvárny, sprchy)","Sme","3. patro","Sprcha",338,1.79,1,null,null,"dlažba"]
["A","Archivy, sklady","Sme","3. patro","sklad",340,4.13,1,null,null,"PVC"]
["E","Chodby, haly, schodiště, hlavní vstup do budovy, kuchyňky","Sme","3. patro","Kuchyňka",341,11.69,1,null,null,"PVC"]
["C","Kancelář","Sme","3. patro","Kancelář",342,16.14,1,null,1,"koberec"]
["C","Kancelář","Sme","3. patro","Kancelář",343,16.05,1,null,1,"koberec"]
["C","Kancelář","Sme","3. patro","Kancelář",344,12.84,1,null,1,"koberec"]
["E","Chodby, haly, schodiště, hlavní vstup do budovy, kuchyňky","Sme","3. patro","chodba",346,16.489999999999998,null,null,2,"PVC"]
["C","Kancelář","Sme","3. patro","Kancelář",348,10.09,1,null,1,"koberec"]
["C","Kancelář","Sme","3. patro","Kancelář",349,15.85,2,null,1,"koberec"]
["C","Kancelář","Sme","3. patro","Kancelář",350,19.920000000000002,2,null,1,"koberec"]
["G","Hygienické zázemí (WC, umyvárny, sprchy)","Sme","3. patro","WC","350a",1.43,1,null,null,"dlažba"]
["C","Kancelář","Sme","3. patro","Kancelář",351,19.29,1,null,1,"koberec"]
["E","Chodby, haly, schodiště, hlavní vstup do budovy, kuchyňky","Sme","3. patro","Kuchyňka","352",3.58,null,null,1,"koberec"]
["G","Hygienické zázemí (WC, umyvárny, sprchy)","Sme","3. patro","WC","352a",1.59,1,null,1,"dlažba"]
["G","Hygienické zázemí (WC, umyvárny, sprchy)","Sme","3. patro","WC","353",1.6,1,null,null,"dlažba"]
["E","Chodby, haly, schodiště, hlavní vstup do budovy, kuchyňky","Sme","3. patro","chodba","354",46.35,null,null,1,"PVC"]
["G","Hygienické zázemí (WC, umyvárny, sprchy)","Sme","3. patro","WC","355",1.73,1,null,1,"dlažba"]
["G","Hygienické zázemí (WC, umyvárny, sprchy)","Sme","3. patro","WC","356",2.2000000000000002,1,null,2,"dlažba"]
["G","Hygienické zázemí (WC, umyvárny, sprchy)","Sme","3. patro","WC","357",1.1399999999999999,1,null,null,"dlažba"]
["G","Hygienické zázemí (WC, umyvárny, sprchy)","Sme","3. patro","WC","358",1.3,1,null,null,"dlažba"]
["G","Hygienické zázemí (WC, umyvárny, sprchy)","Sme","3. patro","WC","359",4.0999999999999996,1,null,null,"dlažba"]
["G","Hygienické zázemí (WC, umyvárny, sprchy)","Sme","3. patro","WC","360",1.95,1,null,null,"dlažba"]
["E","Chodby, haly, schodiště, hlavní vstup do budovy, kuchyňky","Sme","3. patro","chodba","361",29.13,null,null,null,"PVC"]
["E","Chodby, haly, schodiště, hlavní vstup do budovy, kuchyňky","Sme","3. patro","chodba","362",11.77,null,null,null,"PVC"]
["E","Chodby, haly, schodiště, hlavní vstup do budovy, kuchyňky","Sme","3. patro","chodba","363",5.57,1,null,null,"PVC"]
["G","Hygienické zázemí (WC, umyvárny, sprchy)","Sme","3. patro","WC","364",2.2999999999999998,1,null,1,"dlažba"]
["E","Chodby, haly, schodiště, hlavní vstup do budovy, kuchyňky","Sme","3. patro","chodba","366",39.840000000000003,null,null,1,"PVC"]
["G","Hygienické zázemí (WC, umyvárny, sprchy)","Sme","3. patro","WC","367",1.94,1,null,1,"dlažba"]
["G","Hygienické zázemí (WC, umyvárny, sprchy)","Sme","3. patro","WC","368",2.61,1,null,null,"dlažba"]
["G","Hygienické zázemí (WC, umyvárny, sprchy)","Sme","3. patro","WC","368a",1.17,1,null,1,"dlažba"]
["G","Hygienické zázemí (WC, umyvárny, sprchy)","Sme","3. patro","WC","369",0.78,1,null,1,"dlažba"]
["G","Hygienické zázemí (WC, umyvárny, sprchy)","Sme","3. patro","WC","370",0.84,1,null,1,"dlažba"]
["G","Hygienické zázemí (WC, umyvárny, sprchy)","Sme","3. patro","WC","371",2.15,1,null,null,"dlažba"]
["E","Chodby, haly, schodiště, hlavní vstup do budovy, kuchyňky","Sme","3. patro","chodba","372",9.24,null,null,null,"beton"]
["E","Chodby, haly, schodiště, hlavní vstup do budovy, kuchyňky","Sme","3. patro","chodba","373",13.15,null,null,3,"PVC"]
["E","Chodby, haly, schodiště, hlavní vstup do budovy, kuchyňky","Sme","3. patro","chodba","374",11.2,null,null,1,"PVC"]
["E","Chodby, haly, schodiště, hlavní vstup do budovy, kuchyňky","Sme","4. patro","schodiště","4.I",31.89,2,null,2,"Kámen"]
["E","Chodby, haly, schodiště, hlavní vstup do budovy, kuchyňky","Sme","4. patro","schodiště","4.II",25.56,2,null,1,"Kámen"]
["E","Chodby, haly, schodiště, hlavní vstup do budovy, kuchyňky","Sme","4. patro","schodiště","4.III",20.63,2,null,1,"Kámen"]
["C","Kancelář","Sme","4. patro","Kancelář",400,33.07,1,1,1,"PVC"]
["C","Kancelář","Sme","4. patro","Kancelář",401,22.24,2,null,1,"koberec"]
["C","Kancelář","Sme","4. patro","Kancelář",402,22.23,1,null,1,"koberec"]
["B","GŘ SZIF, ŘS, ŘO, Sekretariáty","Sme","4. patro","Kancelář",403,35,2,null,2,"koberec"]
["B","GŘ SZIF, ŘS, ŘO, Sekretariáty","Sme","4. patro","Kancelář",404,36.69,null,null,null,"parkety"]
["C","Kancelář","Sme","4. patro","Kancelář",406,14.27,1,null,1,"koberec"]
["C","Kancelář","Sme","4. patro","Kancelář",407,12.63,2,null,1,"koberec"]
["C","Kancelář","Sme","4. patro","Kancelář",408,24.83,2,null,1,"koberec"]
["E","Chodby, haly, schodiště, hlavní vstup do budovy, kuchyňky","Sme","4. patro","chodba",409,8.86,1,null,null,"koberec"]
["C","Kancelář","Sme","4. patro","Kancelář",411,32.08,2,2,1,"parkety"]
["C","Kancelář","Sme","4. patro","Kancelář",412,28.41,2,null,2,"koberec"]
["C","Kancelář","Sme","4. patro","Kancelář",414,30.2,2,null,2,"koberec"]
["C","Kancelář","Sme","4. patro","Kancelář",415,17.27,1,1,null,"koberec"]
["C","Kancelář","Sme","4. patro","Kancelář",416,17.600000000000001,2,null,1,"koberec"]
["C","Kancelář","Sme","4. patro","Kancelář",417,14.18,null,null,1,"koberec"]
["C","Kancelář","Sme","4. patro","Kancelář",418,17.36,1,null,1,"koberec"]
["C","Kancelář","Sme","4. patro","Kancelář",419,19.29,1,null,1,"koberec"]
["C","Kancelář","Sme","4. patro","Kancelář",422,17.829999999999998,2,null,1,"koberec"]
["C","Kancelář","Sme","4. patro","Kancelář",423,14.79,2,null,1,"koberec"]
["C","Kancelář","Sme","4. patro","Kancelář",424,12.55,2,null,1,"koberec"]
["C","Kancelář","Sme","4. patro","Kopírka",425,9.69,1,null,1,"koberec"]
["C","Kancelář","Sme","4. patro","Kancelář",427,20.37,1,null,1,"koberec"]
["C","Kancelář","Sme","4. patro","Kancelář",428,18.43,2,null,1,"koberec"]
["C","Kancelář","Sme","4. patro","Kancelář",429,32.04,1,1,1,"koberec"]
["C","Kancelář","Sme","4. patro","Kancelář",430,14.9,2,null,1,"koberec"]
["C","Kancelář","Sme","4. patro","Kancelář",431,18.89,2,null,1,"koberec"]
["C","Kancelář","Sme","4. patro","Kancelář",432,21.46,1,null,1,"koberec"]
["C","Kancelář","Sme","4. patro","Kancelář",433,37.06,1,null,2,"koberec"]
["C","Kancelář","Sme","4. patro","Kancelář",435,13.04,1,null,1,"koberec"]
["C","Kancelář","Sme","4. patro","Kancelář",436,15.44,1,null,1,"koberec"]
["C","Kancelář","Sme","4. patro","Kancelář",437,16.75,1,null,1,"koberec"]
["A","Archivy, sklady","Sme","4. patro","Archív (předsíň)",438,3.52,1,null,null,"dlažba"]
["A","Archivy, sklady","Sme","4. patro","Archív",439,6.42,1,null,null,"koberec"]
["M","Úklidová místnost","Sme","4. patro","Úklidová místnost",440,1.9,1,null,null,"PVC"]
["E","Chodby, haly, schodiště, hlavní vstup do budovy, kuchyňky","Sme","4. patro","Kuchyňka","440a",2.58,1,null,null,"dlažba"]
["B","GŘ SZIF, ŘS, ŘO, Sekretariáty","Sme","4. patro","Kancelář",441,23.23,1,null,2,"koberec"]
["B","GŘ SZIF, ŘS, ŘO, Sekretariáty","Sme","4. patro","Kancelář",442,20.14,2,null,2,"koberec"]
["B","GŘ SZIF, ŘS, ŘO, Sekretariáty","Sme","4. patro","Kancelář",443,27.11,1,null,2,"koberec"]
["C","Kancelář","Sme","4. patro","Kancelář",446,10.67,1,null,1,"koberec"]
["C","Kancelář","Sme","4. patro","Kancelář",447,15.62,1,null,1,"koberec"]
["C","Kancelář","Sme","4. patro","Kancelář",448,13.71,2,null,1,"koberec"]
["C","Kancelář","Sme","4. patro","Kancelář",449,23.69,1,null,3,"koberec"]
["E","Chodby, haly, schodiště, hlavní vstup do budovy, kuchyňky","Sme","4. patro","Kuchyňka",450,13.95,1,null,1,"koberec"]
["E","Chodby, haly, schodiště, hlavní vstup do budovy, kuchyňky","Sme","4. patro","Chodba",451,18.75,null,null,2,"PVC"]
["G","Hygienické zázemí (WC, umyvárny, sprchy)","Sme","4. patro","WC","453",2.15,1,null,1,"dlažba"]
["G","Hygienické zázemí (WC, umyvárny, sprchy)","Sme","4. patro","WC","454",1.32,1,null,1,"dlažba"]
["G","Hygienické zázemí (WC, umyvárny, sprchy)","Sme","4. patro","WC","454a",1.32,1,null,null,"dlažba"]
["G","Hygienické zázemí (WC, umyvárny, sprchy)","Sme","4. patro","WC","454b",2.04,1,null,null,"dlažba"]
["E","Chodby, haly, schodiště, hlavní vstup do budovy, kuchyňky","Sme","4. patro","chodba","455",52.28,null,null,1,"PVC"]
["G","Hygienické zázemí (WC, umyvárny, sprchy)","Sme","4. patro","WC","456",1.97,1,null,null,"dlažba"]
["G","Hygienické zázemí (WC, umyvárny, sprchy)","Sme","4. patro","WC","456a",2.2200000000000002,1,null,2,"dlažba"]
["G","Hygienické zázemí (WC, umyvárny, sprchy)","Sme","4. patro","WC","456b",1.26,1,null,null,"dlažba"]
["G","Hygienické zázemí (WC, umyvárny, sprchy)","Sme","4. patro","WC","456c",4.1399999999999997,1,null,null,"dlažba"]
["G","Hygienické zázemí (WC, umyvárny, sprchy)","Sme","4. patro","WC","456d",1.53,1,null,null,"dlažba"]
["E","Chodby, haly, schodiště, hlavní vstup do budovy, kuchyňky","Sme","4. patro","chodba","457",31.52,null,null,null,"PVC"]
["E","Chodby, haly, schodiště, hlavní vstup do budovy, kuchyňky","Sme","4. patro","chodba","458",17.579999999999998,null,null,1,"PVC"]
["E","Chodby, haly, schodiště, hlavní vstup do budovy, kuchyňky","Sme","4. patro","Kuchyňka","460",1.61,1,null,null,"dlažba"]
["E","Chodby, haly, schodiště, hlavní vstup do budovy, kuchyňky","Sme","4. patro","chodba","461",39.79,null,null,1,"PVC"]
["G","Hygienické zázemí (WC, umyvárny, sprchy)","Sme","4. patro","WC","462",6.67,5,null,2,"dlažba"]
["E","Chodby, haly, schodiště, hlavní vstup do budovy, kuchyňky","Sme","4. patro","Kuchyňka","462a",1.18,1,null,null,"dlažba"]
["E","Chodby, haly, schodiště, hlavní vstup do budovy, kuchyňky","Sme","4. patro","chodba","463",20.94,1,null,null,"koberec"]
["K","Balkony, dvory","Sme","4. patro","Balkon "," ",84.8,null,null,null,"dlažba"]
["E","Chodby, haly, schodiště, hlavní vstup do budovy, kuchyňky","Sme","5. patro","schodiště","5.I",23.56,2,null,2,"Kámen"]
["E","Chodby, haly, schodiště, hlavní vstup do budovy, kuchyňky","Sme","5. patro","schodiště","5.II",23.52,2,null,1,"Kámen"]
["E","Chodby, haly, schodiště, hlavní vstup do budovy, kuchyňky","Sme","5. patro","schodiště","5.III",18.989999999999998,2,null,1,"Kámen"]
["C","Kancelář","Sme","5. patro","Kancelář",500,34.6,2,null,2,"parkety"]
["C","Kancelář","Sme","5. patro","Kancelář",501,23.67,2,null,1,"koberec"]
["C","Kancelář","Sme","5. patro","Kancelář",502,22.34,2,null,1,"koberec"]
["C","Kancelář","Sme","5. patro","Kancelář",503,17.55,2,null,1,"koberec"]
["C","Kancelář","Sme","5. patro","Kancelář",504,16.95,1,null,1,"koberec"]
["C","Kancelář","Sme","5. patro","Kancelář",506,14.28,1,null,1,"koberec"]
["C","Kancelář","Sme","5. patro","Kancelář",507,12.76,2,null,1,"koberec"]
["C","Kancelář","Sme","5. patro","Kancelář",508,24.89,1,null,3,"koberec"]
["C","Kancelář","Sme","5. patro","Kancelář",511,17.63,1,null,1,"parkety"]
["C","Kancelář","Sme","5. patro","Kancelář",512,18.13,1,null,1,"koberec"]
["B","GŘ SZIF, ŘS, ŘO, Sekretariáty","Sme","5. patro","Kancelář",513,32.049999999999997,2,null,3,"koberec"]
["B","GŘ SZIF, ŘS, ŘO, Sekretariáty","Sme","5. patro","Kancelář",514,28.1,2,null,2,"koberec"]
["B","GŘ SZIF, ŘS, ŘO, Sekretariáty","Sme","5. patro","Kancelář",515,30.11,1,null,2,"koberec"]
["C","Kancelář","Sme","5. patro","Kancelář",516,17.09,1,null,1,"koberec"]
["C","Kancelář","Sme","5. patro","Kancelář",517,17.73,2,null,1,"koberec"]
["C","Kancelář","Sme","5. patro","Kancelář",519,32.270000000000003,1,null,2,"koberec"]
["C","Kancelář","Sme","5. patro","Kancelář",520,19.420000000000002,1,null,1,"koberec"]
["C","Kancelář","Sme","5. patro","Kancelář","520a",20.93,1,null,1,"koberec"]
["C","Kancelář","Sme","5. patro","Kancelář",524,18.559999999999999,1,null,1,"koberec"]
["C","Kancelář","Sme","5. patro","Kancelář","525a",14.98,1,null,1,"koberec"]
["C","Kancelář","Sme","5. patro","Kancelář","525b",12.65,1,null,1,"koberec"]
["C","Kancelář","Sme","5. patro","Kancelář",526,9.6,1,null,1,"koberec"]
["C","Kancelář","Sme","5. patro","Kancelář",529,18.37,1,null,1,"koberec"]
["E","Chodby, haly, schodiště, hlavní vstup do budovy, kuchyňky","Sme","5. patro","Chodba",530,7.95,1,null,null,"koberec"]
["C","Kancelář","Sme","5. patro","Kancelář","530a",11.25,1,null,1,"koberec"]
["C","Kancelář","Sme","5. patro","Kancelář","530b",11.25,1,null,1,"koberec"]
["C","Kancelář","Sme","5. patro","Kancelář",531,14.45,1,null,1,"koberec"]
["C","Kancelář","Sme","5. patro","Kancelář",532,18.89,1,null,1,"koberec"]
["C","Kancelář","Sme","5. patro","Kancelář",533,21.14,1,null,1,"koberec"]
["B","GŘ SZIF, ŘS, ŘO, Sekretariáty","Sme","5. patro","Kancelář",534,20.329999999999998,1,null,1,"koberec"]
["B","GŘ SZIF, ŘS, ŘO, Sekretariáty","Sme","5. patro","Kancelář",535,16.57,1,null,1,"koberec"]
["A","Archivy, sklady","Sme","5. patro","Archív",537,4.9400000000000004,1,null,null,"koberec"]
["A","Archivy, sklady","Sme","5. patro","Archív",538,10.36,2,null,null,"koberec"]
["C","Kancelář","Sme","5. patro","Kancelář",539,18.11,2,null,1,"koberec"]
["C","Kancelář","Sme","5. patro","Kancelář",540,14.3,1,null,1,"koberec"]
["C","Kancelář","Sme","5. patro","Kancelář",541,13.32,1,null,1,"koberec"]
["C","Kancelář","Sme","5. patro","Kancelář",543,23.47,1,null,3,"koberec"]
["C","Kancelář","Sme","5. patro","Kancelář",544,14.99,1,null,2,"parkety"]
["C","Kancelář","Sme","5. patro","Kancelář",545,11.64,1,null,1,"koberec"]
["C","Kancelář","Sme","5. patro","Kancelář",546,15.3,1,null,1,"koberec"]
["E","Chodby, haly, schodiště, hlavní vstup do budovy, kuchyňky","Sme","5. patro","chodba","547",4.38,null,null,null,"koberec"]
["E","Chodby, haly, schodiště, hlavní vstup do budovy, kuchyňky","Sme","5. patro","chodba","549",14.55,null,null,1,"koberec"]
["E","Chodby, haly, schodiště, hlavní vstup do budovy, kuchyňky","Sme","5. patro","Kuchyňka","550",3.26,1,null,null,"dlažba"]
["G","Hygienické zázemí (WC, umyvárny, sprchy)","Sme","5. patro","WC","551",3.54,1,null,1,"dlažba"]
["G","Hygienické zázemí (WC, umyvárny, sprchy)","Sme","5. patro","WC","553",1.35,1,null,1,"dlažba"]
["G","Hygienické zázemí (WC, umyvárny, sprchy)","Sme","5. patro","WC","555",1.3,1,null,null,"dlažba"]
["G","Hygienické zázemí (WC, umyvárny, sprchy)","Sme","5. patro","WC","556",2.59,1,null,null,"dlažba"]
["E","Chodby, haly, schodiště, hlavní vstup do budovy, kuchyňky","Sme","5. patro","chodba","557",52.09,null,null,null,"PVC"]
["G","Hygienické zázemí (WC, umyvárny, sprchy)","Sme","5. patro","WC","559",2.19,1,null,2,"dlažba"]
["G","Hygienické zázemí (WC, umyvárny, sprchy)","Sme","5. patro","WC","560",1.2,1,null,null,"dlažba"]
["G","Hygienické zázemí (WC, umyvárny, sprchy)","Sme","5. patro","WC","561",1.81,1,null,null,"dlažba"]
["G","Hygienické zázemí (WC, umyvárny, sprchy)","Sme","5. patro","WC","562",4.12,1,null,null,"dlažba"]
["G","Hygienické zázemí (WC, umyvárny, sprchy)","Sme","5. patro","WC","563",1.62,1,null,null,"dlažba"]
["E","Chodby, haly, schodiště, hlavní vstup do budovy, kuchyňky","Sme","5. patro","chodba","564",31.67,null,null,null,"PVC"]
["E","Chodby, haly, schodiště, hlavní vstup do budovy, kuchyňky","Sme","5. patro","chodba","565",11.51,null,null,1,"PVC"]
["E","Chodby, haly, schodiště, hlavní vstup do budovy, kuchyňky","Sme","5. patro","chodba","566",6.15,1,null,null,"PVC"]
["E","Chodby, haly, schodiště, hlavní vstup do budovy, kuchyňky","Sme","5. patro","Kuchyňka","567",1.71,1,null,1,"dlažba"]
["E","Chodby, haly, schodiště, hlavní vstup do budovy, kuchyňky","Sme","5. patro","chodba","569",39.35,null,null,1,"PVC"]
["G","Hygienické zázemí (WC, umyvárny, sprchy)","Sme","5. patro","WC","570",1.1100000000000001,1,null,null,"dlažba"]
["E","Chodby, haly, schodiště, hlavní vstup do budovy, kuchyňky","Sme","5. patro","Kuchyňka","571",1.53,1,null,null,"dlažba"]
["G","Hygienické zázemí (WC, umyvárny, sprchy)","Sme","5. patro","WC","572",1.56,1,null,null,"dlažba"]
["G","Hygienické zázemí (WC, umyvárny, sprchy)","Sme","5. patro","WC","573",1.79,1,null,null,"dlažba"]
["G","Hygienické zázemí (WC, umyvárny, sprchy)","Sme","5. patro","WC","574",2.52,1,null,1,"dlažba"]
["E","Chodby, haly, schodiště, hlavní vstup do budovy, kuchyňky","Sme","6. patro","schodiště","6.I",3.68,1,null,null,"Kámen"]
["E","Chodby, haly, schodiště, hlavní vstup do budovy, kuchyňky","Sme","6. patro","schodiště","6.II",7.58,null,null,1,"Kámen"]
["E","Chodby, haly, schodiště, hlavní vstup do budovy, kuchyňky","Sme","6. patro","schodiště","6.III",5.84,1,null,2,"dlažba"]
["C","Kancelář","Sme","6. patro","Openspace",601,57.04,2,null,3,"koberec"]
["C","Kancelář","Sme","6. patro","Kancelář",604,12.66,1,null,1,"koberec"]
["C","Kancelář","Sme","6. patro","Openspace",605,87.89,1,null,5,"koberec"]
["D","Zasedací místnosti, učebny","Sme","6. patro","Zasedací místnost",610,13.98,1,null,1,"koberec"]
["B","GŘ SZIF, ŘS, ŘO, Sekretariáty","Sme","6. patro","Kancelář",611,20.18,1,null,2,"koberec"]
["B","GŘ SZIF, ŘS, ŘO, Sekretariáty","Sme","6. patro","Kancelář",612,19.850000000000001,1,null,2,"koberec"]
["C","Kancelář","Sme","6. patro","Kancelář",613,19.440000000000001,1,null,2,"koberec"]
["C","Kancelář","Sme","6. patro","Kancelář",614,19.239999999999998,1,null,2,"koberec"]
["C","Kancelář","Sme","6. patro","Kancelář",615,19.28,1,null,2,"koberec"]
["G","Hygienické zázemí (WC, umyvárny, sprchy)","Sme","6. patro","WC","616",5.86,3,null,0,"dlažba"]
["G","Hygienické zázemí (WC, umyvárny, sprchy)","Sme","6. patro","WC","618",5.13,2,null,2,"dlažba"]
["E","Chodby, haly, schodiště, hlavní vstup do budovy, kuchyňky","Sme","6. patro","chodba","619",4.78,1,null,0,"PVC"]
["E","Chodby, haly, schodiště, hlavní vstup do budovy, kuchyňky","Sme","6. patro","chodba","620",7.73,1,null,0,"dlažba"]
["A","Archivy, sklady","Sme","6. patro","sklad","621",13.03,1,null,0,"PVC"]
["E","Chodby, haly, schodiště, hlavní vstup do budovy, kuchyňky","Sme","6. patro","Kuchyňka","622",11.12,1,null,1,"dlažba"]
["E","Chodby, haly, schodiště, hlavní vstup do budovy, kuchyňky","Sme","6. patro","chodba před patrem","624",15.83,3,null,0,"dlažba"]
["A","Archivy, sklady","Sme","6. patro","šatna","625",3.33,0,null,0,"koberec"]
["A","Archivy, sklady","Sme","6. patro","sklad","626",7.95,1,null,0,"PVC"]
["E","Chodby, haly, schodiště, hlavní vstup do budovy, kuchyňky","Sme","6. patro","chodba","627",4.1500000000000004,2,null,0,"dlažba"]
["A","Archivy, sklady","Sme","6. patro","šatna","628",4.17,1,null,0,"PVC"]
["A","Archivy, sklady","Sme","6. patro","chodba / archiv","629",28.86,2,null,0,"PVC"]
["E","Chodby, haly, schodiště, hlavní vstup do budovy, kuchyňky","Sme","6. patro","Kuchyňka","630",17.079999999999998,1,null,1,"dlažba"]
["G","Hygienické zázemí (WC, umyvárny, sprchy)","Sme","6. patro","WC","631",5.8,2,null,0,"dlažba"]
["G","Hygienické zázemí (WC, umyvárny, sprchy)","Sme","6. patro","WC","632",8.23,3,null,1,"dlažba"]
["G","Hygienické zázemí (WC, umyvárny, sprchy)","Sme","6. patro","WC","633",2.99,1,null,0,"dlažba"]
["A","Archivy, sklady","Sme","6. patro","Sklad / chodba","634",14.57,1,null,null,"PVC"]
["D","Zasedací místnosti, učebny","Sme","6. patro","Učebna IT","635",58.42,2,null,4,"PVC"]
["A","Archivy, sklady","Sme","6. patro","Strojovna",636,26.42,1,null,1,"dlažba"]
["A","Archivy, sklady","Sme","6. patro","archiv","637a",22.57,2,null,0,"PVC"]
["A","Archivy, sklady","Sme","6. patro","sklad","638",8.94,1,null,0,"PVC"]
["A","Archivy, sklady","Sme","6. patro","sklad","639",8.8800000000000008,1,null,0,"PVC"]
["A","Archivy, sklady","Sme","6. patro","sklad","640",4.87,1,null,0,"PVC"]
["H","Výtah osobní","Ště"," ","1 ks"," "," "," ",null,null,"PVC"]
["H","Výtah nákladní","Ště",null,"1 ks"," "," ",null,null,null,"PVC"]
["L","Dešťové svody, drenáže, uliční vpusti","Ště","Přízemí","Venkovní svody 2 ks"]
["L","Dešťové svody, drenáže, uliční vpusti","Ště","Přízemí","Dvorní svody 2 ks"]
["L","Dešťové svody, drenáže, uliční vpusti","Ště","Přízemí","Venkovní vpusti 2 ks"]
["D","Zasedací místnosti, učebny","Ště","Suterén","KC malá zasedací místnost","S.03",23.5,1,null,null,"dlažba"]
["G","Hygienické zázemí (WC, umyvárny, sprchy)","Ště","Suterén","WC","S.05",6.3,2,null,null,"dlažba"]
["G","Hygienické zázemí (WC, umyvárny, sprchy)","Ště","Suterén","WC","S.06",6.8,2,null,null,"dlažba"]
["A","Server, archivy, sklady","Ště","Suterén","KC catering + sklad","S.07",38.18,2,null,null,"dlažba"]
["A","Server, archivy, sklady","Ště","Suterén","KC velká zasedací místnost - zázemí","S.08",58.6,1,null,null,"dlažba"]
["D","Zasedací místnosti, učebny","Ště","Suterén","KC velká zasedací místnost ","S.09",84.34,1,null,null,"dlažba"]
["E","Chodby, haly, schodiště, hlavní vstup do budovy, kuchyňky","Ště","Suterén","Chodba před vstupem do KC","S.10",18.23,null,null,null,"dlažba"]
["E","Chodby, haly, schodiště, hlavní vstup do budovy, kuchyňky","Ště","Suterén","Schodiště","S.11",7.65,null,null,null,"kámen"]
["K","Balkony, dvory","Ště","Přízemí","Dvůr",null,115,null,null,null,"dlažba"," "]
["K","Balkony, dvory","Ště","Přízemí","Nádoby na odpad 8 ks"]
["E","Chodby, haly, schodiště, hlavní vstup do budovy, kuchyňky","Ště","Přízemí","Hlavní vstup do dvora velké dveře",null,null,1,null,null,"dřevo,sklo"]
["I","Průjezdy, chodníky","Ště","Přízemí","Průjezd","P.01",43.55,null,null,null,"kámen"]
["I","Průjezdy, chodníky","Ště","Přízemí","Chodníky (před objektem) 1 x",null,37.869999999999997,null,null,null,null," "]
["E","Chodby, haly, schodiště, hlavní vstup do budovy, kuchyňky","Ště","Přízemí","Hlavní vstup do budovy velké dveře",null,null,1,null,null,"dřevo,sklo"]
["E","Chodby, haly, schodiště, hlavní vstup do budovy, kuchyňky","Ště","Přízemí","Ostraha - chodbička","P.03",6.39,1,null,null,"PVC"]
["E","Chodby, haly, schodiště, hlavní vstup do budovy, kuchyňky","Ště","Přízemí","Ostraha - chodbička nahoře","P.03A",15.25,1,null,null,"PVC"]
["E","Chodby, haly, schodiště, hlavní vstup do budovy, kuchyňky","Ště","Přízemí","Ostraha - Recepce","P.04",9.68,1,null,1,"PVC"]
["E","Chodby, haly, schodiště, hlavní vstup do budovy, kuchyňky","Ště","Přízemí","Ostraha - zázemí","P.05",12.33,1,null,1,"PVC"]
["E","Chodby, haly, schodiště, hlavní vstup do budovy, kuchyňky","Ště","Přízemí","Ostraha","P.06",1.35,1,null,null,"PVC"]
["E","Chodby, haly, schodiště, hlavní vstup do budovy, kuchyňky","Ště","Přízemí","Ostraha","P.07",3.86,1,null,null,"PVC"]
["E","Chodby, haly, schodiště, hlavní vstup do budovy, kuchyňky","Ště","Přízemí","Hlavní chodba u hlavního schodiště","S.10",22.96,null,null,1,"dlažba"]
["E","Chodby, haly, schodiště, hlavní vstup do budovy, kuchyňky","Ště","Přízemí","Schody před vstupem do objektu","S.10",22.96,null,null," ","kámen"]
["E","Chodby, haly, schodiště, hlavní vstup do budovy, kuchyňky","Ště","Mezanin","Chodba centrální ","M102",48.3," ",null,null,"PVC"]
["A","Server, archivy, sklady","Ště","Mezanin","Sklad","M103",7.21,1,null,null,"PVC"]
["C","Kancelář","Ště","Mezanin","Kancelář","M104",16.61,2,null,1,"koberec"]
["C","Kancelář","Ště","Mezanin","Kancelář","M105",16.989999999999998," ",1,2,"koberec"]
["C","Kancelář","Ště","Mezanin","Kancelář","M106",27.28,1,null,1,"koberec"]
["C","Kancelář","Ště","Mezanin","Kancelář","M107",27.87,1,null,null,"koberec"]
["C","Kancelář","Ště","Mezanin","Kancelář","M108",25.09,1,null,1,"koberec"]
["C","Kancelář","Ště","Mezanin","Kancelář","M109",23.18,1,null,1,"koberec"]
["A","Sklad","Ště","Mezanin","Sklad","M110",35.9,1,null,2,"koberec"]
["C","Kancelář","Ště","Mezanin","Kancelář","M111",24.45,1,null,1,"koberec"]
["C","Kancelář","Ště","Mezanin","Kancelář","M112",27.64,1,null,2,"koberec"]
["C","Kancelář","Ště","Mezanin","Kancelář","M113",27.05,1,null,1,"koberec"]
["E","Chodby, haly, schodiště, hlavní vstup do budovy, kuchyňky","Ště","Mezanin","Kuchyňka","M114",4.2699999999999996,2,null,null,"dlažba"]
["G","Hygienické zázemí (WC, umyvárny, sprchy)","Ště","Mezanin","WC","M116",1.62,1,null,null,"dlažba"]
["G","Hygienické zázemí (WC, umyvárny, sprchy)","Ště","Mezanin","WC","M117",1.43,1,null,null,"dlažba"]
["G","Hygienické zázemí (WC, umyvárny, sprchy)","Ště","Mezanin","WC","M118",1.61,1,null,null,"dlažba"]
["G","Hygienické zázemí (WC, umyvárny, sprchy)","Ště","Mezanin","WC","M119",1.42,1,null,null,"dlažba"]
["E","Chodby, haly, schodiště, hlavní vstup do budovy, kuchyňky","Ště","Mezanin","Chodba před vstupem do patra",null,6,1,null,null,"dlažba"]
["E","Chodby, haly, schodiště, hlavní vstup do budovy, kuchyňky","Ště","Mezanin","Schodiště",null,18.39,null,null,1,"kámen"]
["A","Server, archivy, sklady","Ště","1.patro","Sklad",101,9.56,1,null,1,"PVC"]
["C","Kancelář","Ště","1.patro","Kancelář",102,16.73,2,null,1,"koberec"]
["C","Kancelář","Ště","1.patro","Kancelář",103,16.739999999999998," ",1,2,"koberec"]
["C","Kancelář","Ště","1.patro","Kancelář",104,27.19,1,null,1,"koberec"]
["A","Server, archivy, sklady","Ště","1.patro","Sklad",105,14.01,1,null,null,"PVC"]
["A","Kanceláře pod dozorem","Ště","1.patro","Serverovna 1. patro",106,13.41,1,null,null,"PVC"]
["E","Chodby, haly, schodiště, hlavní vstup do budovy, kuchyňky","Ště","1.patro","Chodba centrální ","107",54.06," ",null,null,"koberec"]
["B","GŘ SZIF, ŘS, ŘO, Sekretariáty","Ště","1.patro","Kancelář",108,27.29,1,null,1,"koberec"]
["C","Kancelář","Ště","1.patro","Kancelář",109,23.04,2,1,2,"koberec"]
["C","Kancelář","Ště","1.patro","Kancelář",110,24.35,1,null,2,"koberec"]
["C","Kancelář","Ště","1.patro","Kancelář",111,35.5,1,null,4,"koberec"]
["B","GŘ SZIF, ŘS, ŘO, Sekretariáty","Ště","1.patro","Sekretariát",112,25.11,2,null,2,"koberec"]
["C","Kancelář","Ště","1.patro","Kancelář","113",26.87,1,1,2,"koberec"]
["G","Hygienické zázemí (WC, umyvárny, sprchy)","Ště","1.patro","WC","114",1.58,1,null,null,"dlažba"]
["G","Hygienické zázemí (WC, umyvárny, sprchy)","Ště","1.patro","WC","115",1.51,1,null,null,"dlažba"]
["G","Hygienické zázemí (WC, umyvárny, sprchy)","Ště","1.patro","WC","116",1.58,1,null,null,"dlažba"]
["G","Hygienické zázemí (WC, umyvárny, sprchy)","Ště","1.patro","WC","117",1.51,1,null,null,"dlažba"]
["E","Chodby, haly, schodiště, hlavní vstup do budovy, kuchyňky","Ště","1.patro","Kuchyňka","120",2.59,1,null,null,"dlažba"]
["E","Chodby, haly, schodiště, hlavní vstup do budovy, kuchyňky","Ště","1.patro","Chodba před vstupem do patra",null,5.73,1,null,null,"dlažba"]
["E","Chodby, haly, schodiště, hlavní vstup do budovy, kuchyňky","Ště","1.patro","Schodiště",null,18.149999999999999,null,null,1,"kámen"]
["C","Kancelář","Ště","2.patro","Kancelář","201",17.03,2,null,1,"koberec"]
["C","Kancelář","Ště","2.patro","Kancelář","202",17.350000000000001,1,1,2,"koberec"]
["C","Kancelář","Ště","2.patro","Kancelář","203",27.94,1,null,1,"koberec"]
["C","Kancelář","Ště","2.patro","Kancelář","204",19.96,1,1,1,"koberec"]
["K","Balkony, dvory","Ště","2.patro","Balkon (lodžie)","204L",10.17,null,null,null,"dlažba"]
["C","Kancelář","Ště","2.patro","Kancelář","205",28.27,1,null,1,"koberec"]
["C","Kancelář","Ště","2.patro","Kancelář","206",23.04,2,null,1,"koberec"]
["C","Kancelář","Ště","2.patro","Kancelář","207",24.3,2," ",2,"koberec"]
["E","Chodby, haly, schodiště, hlavní vstup do budovy, kuchyňky","Ště","2.patro","Chodba ","208",5.66,1,null,null,"koberec"]
["C","Kancelář","Ště","2.patro","Kancelář","208A",14.32,1,null,2,"koberec"]
["C","Kancelář","Ště","2.patro","Kancelář","208b",14.25,1,null,2,"koberec"]
["C","Kancelář","Ště","2.patro","Kancelář","209",26.77,2,null,2,"koberec"]
["C","Kancelář","Ště","2.patro","Kancelář","210",24.1," ",null,1,"koberec"]
["E","Chodby, haly, schodiště, hlavní vstup do budovy, kuchyňky","Ště","2.patro","Chodba centrální ","211",53.38," ",null,null,"koberec"]
["G","Hygienické zázemí (WC, umyvárny, sprchy)","Ště","2.patro","WC","212",1.63,1,null,null,"dlažba"]
["G","Hygienické zázemí (WC, umyvárny, sprchy)","Ště","2.patro","WC","213",1.55,1,null,null,"dlažba"]
["G","Hygienické zázemí (WC, umyvárny, sprchy)","Ště","2.patro","WC","214",1.63,1,null,null,"dlažba"]
["G","Hygienické zázemí (WC, umyvárny, sprchy)","Ště","2.patro","WC","215",1.55,1,null,null,"dlažba"]
["A","Server, archivy, sklady","Ště","2.patro","Sklad","216",7.08,1,null,null,"PVC"]
["E","Chodby, haly, schodiště, hlavní vstup do budovy, kuchyňky","Ště","2.patro","Kuchyňka","222",2.59,1,null,null,"dlažba"]
["E","Chodby, haly, schodiště, hlavní vstup do budovy, kuchyňky","Ště","2.patro","Chodba před vstupem do patra",null,5.73,1,null,null,"dlažba"]
["E","Chodby, haly, schodiště, hlavní vstup do budovy, kuchyňky","Ště","2.patro","Schodiště",null,18.149999999999999,null,null,null,"kámen"]
["C","Kancelář","Ště","3.patro","Kancelář","301B",16.82,2,null,1,"koberec"]
["C","Kancelář","Ště","3.patro","Kancelář","302B",16.920000000000002," ",null,1,"koberec"]
["C","Kancelář","Ště","3.patro","Kancelář","303B",19.079999999999998,3,null,1,"koberec"]
["K","Balkony, dvory","Ště","3.patro","Balkon (lodžie)","303L",10.17,null,null,null,"dlažba"]
["E","Chodby, haly, schodiště, hlavní vstup do budovy, kuchyňky","Ště","3.patro","Chodba","304B",13.56,1,null,null,"koberec"]
["E","Chodby, haly, schodiště, hlavní vstup do budovy, kuchyňky","Ště","3.patro","Kuchyňka","305B",5.7," ",null,null,"dlažba"]
["G","Hygienické zázemí (WC, umyvárny, sprchy)","Ště","3.patro","WC","306B",1.61,1,null,null,"dlažba"]
["C","Kancelář","Ště","3.patro","Kancelář","301",27.9,1,null,1,"koberec"]
["C","Kancelář","Ště","3.patro","Kancelář","302",29.01,1,null,1,"lino"]
["C","Kancelář","Ště","3.patro","Kancelář","303",23.05,1,null,1,"lino"]
["C","Kancelář","Ště","3.patro","Kancelář","304",24.28,2,null,2,"lino"]
["C","Kancelář","Ště","3.patro","Kancelář","305",35.630000000000003,1,null,4,"parkety"]
["C","Kancelář","Ště","3.patro","Kancelář","306",24.48,2,null,2,"lino"]
["C","Kancelář","Ště","3.patro","Kancelář","307",26.51," ",null,1,"lino"]
["E","Chodby, haly, schodiště, hlavní vstup do budovy, kuchyňky","Ště","3.patro","Chodba centrální ","308",41.21," ",null,null,"koberec"]
["G","Hygienické zázemí (WC, umyvárny, sprchy)","Ště","3.patro","WC","311",3.26,2,null,null,"dlažba"]
["G","Hygienické zázemí (WC, umyvárny, sprchy)","Ště","3.patro","WC","312",2.7,2,null,null,"dlažba"]
["E","Chodby, haly, schodiště, hlavní vstup do budovy, kuchyňky","Ště","3.patro","Kuchyňka","313",2.63,1,null,null,"dlažba"]
["E","Chodby, haly, schodiště, hlavní vstup do budovy, kuchyňky","Ště","3.patro","Chodba před vstupem do patra",null,5.76,1,null,null,"dlažba"]
["E","Chodby, haly, schodiště, hlavní vstup do budovy, kuchyňky","Ště","3.patro","Schodiště","3.21",18.14,null,null,1,"kámen"]
["C","Kancelář","Ště","4.  patro","Kancelář","401",17.14,2,null,1,"koberec"]
["C","Kancelář","Ště","4.  patro","Kancelář","402",17.38," ",null,2,"koberec"]
["C","Kancelář","Ště","4.  patro","Kancelář","403",28.82,2,null,1,"koberec"]
["C","Kancelář","Ště","4.  patro","Kancelář","404",22.98,2,null,1,"koberec"]
["C","Kancelář","Ště","4.  patro","Kancelář","405",24.42,1,null,1,"koberec"]
["C","Kancelář","Ště","4.  patro","Kancelář","406",35.5,1,null,2,"koberec"]
["B","GŘ SZIF, ŘS, ŘO, Sekretariáty","Ště","4.  patro","Sekretariát","407",24.31,2,null,1,"koberec"]
["C","Kancelář","Ště","4.  patro","Kancelář","408",26.12," ",null,1,"koberec"]
["E","Chodby, haly, schodiště, hlavní vstup do budovy, kuchyňky","Ště","4.  patro","Chodba centrální ","409",39.39," ",null,null,"koberec"]
["E","Chodby, haly, schodiště, hlavní vstup do budovy, kuchyňky","Ště","4.  patro","Chodba centrální ","410",13.6," ",null,null,"koberec"]
["E","Chodby, haly, schodiště, hlavní vstup do budovy, kuchyňky","Ště","4.  patro","Kuchyňka","412",2.69,1,null,null,"dlažba"]
["A","Kanceláře pod dozorem","Ště","4.  patro","Serverovna 4. patro","413",8.7100000000000009,1,null,null,"PVC"]
["C","Kancelář","Ště","4.  patro","Kancelář","414",28.82,2,null,1,"koberec"]
["C","Kancelář","Ště","4.  patro","Kancelář","415",19.309999999999999,2,null,1,"koberec"]
["K","Balkony, dvory","Ště","4. patro","Balkon (lodžie)","415L",10.17,null,null,null,"dlažba"]
["G","Hygienické zázemí (WC, umyvárny, sprchy)","Ště","4.  patro","WC","416",1.58,1,null,null,"dlažba"]
["G","Hygienické zázemí (WC, umyvárny, sprchy)","Ště","4.  patro","WC","417",1.58,1,null,null,"dlažba"]
["G","Hygienické zázemí (WC, umyvárny, sprchy)","Ště","4.  patro","WC","418",1.58,1,null,null,"dlažba"]
["G","Hygienické zázemí (WC, umyvárny, sprchy)","Ště","4.  patro","WC","419",1.57,1,null,null,"dlažba"]
["E","Chodby, haly, schodiště, hlavní vstup do budovy, kuchyňky","Ště","4.  patro","Chodba před vstupem do patra",null,5.73,1,null,null,"dlažba"]
["E","Chodby, haly, schodiště, hlavní vstup do budovy, kuchyňky","Ště","4.  patro","Schodiště",421,18.149999999999999,null,null,1,"kámen"]
["C","Kancelář","Ště","5. patro","Kancelář","501",17.48,3,null,1,"koberec"]
["K","Balkony, dvory","Ště","5. patro","Balkon (lodžie)","501L",10.039999999999999,null,null,null,"dlažba"]
["C","Kancelář","Ště","5. patro","Kancelář","502",17.68," ",null,1,"koberec"]
["C","Kancelář","Ště","5. patro","Kancelář","503",31.23,1,null,1,"koberec"]
["C","Kancelář","Ště","5. patro","Kancelář","504",26.62,1,null,1,"koberec"]
["B","GŘ SZIF, ŘS, ŘO, Sekretariáty","Ště","5. patro","Sekretariát","505",29.81,3,null,1,"koberec"]
["C","Kancelář","Ště","5. patro","Kancelář","506",29.45,2,null,1,"koberec"]
["C","Kancelář","Ště","5. patro","Kancelář","507",42.91,1,null,2,"koberec"]
["B","GŘ SZIF, ŘS, ŘO, Sekretariáty","Ště","5. patro","Kancelář","508",43.01,2,null,2,"koberec"]
["B","GŘ SZIF, ŘS, ŘO, Sekretariáty","Ště","5. patro","Kancelář",509,32.11," ",null,1,"koberec"]
["E","Chodby, haly, schodiště, hlavní vstup do budovy, kuchyňky","Ště","5. patro","Chodba centrální ","510",52.06," ",null,null,"koberec"]
["G","Hygienické zázemí (WC, umyvárny, sprchy)","Ště","5. patro","WC","511",1.71,1,null,null,"dlažba"]
["G","Hygienické zázemí (WC, umyvárny, sprchy)","Ště","5. patro","WC","512",1.72,1,null,null,"dlažba"]
["G","Hygienické zázemí (WC, umyvárny, sprchy)","Ště","5. patro","WC","513",1.71,1,null,null,"dlažba"]
["G","Hygienické zázemí (WC, umyvárny, sprchy)","Ště","5. patro","WC","514",1.72,1,null,null,"dlažba"]
["E","Chodby, haly, schodiště, hlavní vstup do budovy, kuchyňky","Ště","5. patro","Kuchyňka","5.17",2.68,1,null,null,"dlažba"]
["E","Chodby, haly, schodiště, hlavní vstup do budovy, kuchyňky","Ště","5. patro","Chodba před vstupem do patra",null,5.9,1,null,null,"dlažba"]
["E","Chodby, haly, schodiště, hlavní vstup do budovy, kuchyňky","Ště","5. patro","Schodiště",null,12.42," ",null,1,"kámen"]
[null,null,null,null,null,null,{"$f":"SUM(G2:G655)","v":10847.419999999984}]